Workbook

Sheet EONIA
A1: Instrument | B1: Tenor | C1: Stamp | D1: Maturity | E1: Mkt.Values | F1: days | G1: t(Act/360) | H1: Discount | I1: Zero Coupon Rate | J1: Forward | K1: Forward rate | L1: df*Δti | M1: Δt | AY1: 0.081111021 | AZ1: 0.9999977778 | BA1: 0.0717237882
A2: M. Mkt. | B2: O/N* | C2: 2012-11-14 | D2: 2012-11-15 | E2: 0.08 | F2: =D2-C2 -> 1 | G2: =F2/360 -> 0.002777777778 | H2: =1/(1+E2/100*G2) -> 0.9999977778 | I2: =-100*LN(H2)/((D2-C2)/365) -> 0.08111102099 | K2: =I2 -> 0.08111102099 | AY2: 0.081111021 | AZ2: 0.9999955556 | BA2: 0.071
A3: M. Mkt. | B3: T/N* | C3: 2012-11-15 | D3: =AddDays(D2,1) -> 2012-11-16 | E3: 0.08 | F3: 1 | G3: =F3/360 -> 0.002777777778 | H3: =1/(1+E3/100*G3) -> 0.9999977778 | I3: =-100*LN(H3)/((D3-C2)/365) -> 0.04055551049 | J3: =36500*(LN(H2)-LN(H3))/F3 -> 0 | K3: =36500*(LN(H2)-LN(H3))/(D3-D2) -> 0 | AX3: 0.0826877361 | AY3: 0.9999796115 | AZ3: 0.0685650698
A4: Swap | B4: 1W | C4: 2012-11-16 | D4: =AddDays(D3,7) -> 2012-11-23 | E4: 0.082 | F4: =D4-C4 -> 7 | G4: 0.01944444444 | H4: =H3/(1+E4/100*G4) -> 0.9999818336 | I4: =-100*LN(H4)/((D4-C2)/365) -> 0.07367540041 | J4: 0.08313822609 | K4: 0.08313822609 | AX4: 0.0811084813 | AY4: 0.9999266717 | AZ4: 0.0598859844
A5: Swap | B5: 1M | C5: 2012-11-16 | D5: =AddMonths(D3,1) -> 2012-12-17 | E5: 0.08 | F5: =D5-C5 -> 31 | G5: 0.08611111111 | H5: =H3/(1+E5/100*G5) -> 0.9999288938 | I5: =-100*LN(H5)/((D5-C2)/365) -> 0.07865057154 | J5: 0.06233516958 | K5: 0.08051626071 | AX5: 0.0791426446 | AY5: 0.999863407 | AZ5: 0.0461161272
A6: Swap | B6: 2M | C6: 2012-11-16 | D6: =AddMonths(D3,2) -> 2013-01-16 | E6: 0.078 | F6: 61 | G6: 0.1694444444 | H6: =H3/(1+E6/100*G6) -> 0.9998656289 | I6: =-100*LN(H6)/((D6-C2)/365) -> 0.07785516811 | J6: 0.03785912672 | K6: 0.07698022434 | AX6: 0.0721696805 | AY6: 0.9998102019 | AZ6: 0.0377036928
A7: Swap | B7: 3M | C7: 2012-11-16 | D7: =AddMonths(D3,3) -> 2013-02-18 | E7: 0.071 | F7: 94 | G7: 0.2611111111 | H7: =H3/(1+E7/100*G7) -> 0.9998124237 | I7: =-100*LN(H7)/((D7-C2)/365) -> 0.07132477404 | J7: 0.02066279486 | K7: 0.05885765809 | AX7: 0.0661409317 | AY7: 0.9997753273 | AZ7: 0.0345929881
A8: Swap | B8: 4M | C8: 2012-11-16 | D8: =AddMonths(D3,4) -> 2013-03-18 | E8: 0.065 | F8: 122 | G8: 0.3388888889 | H8: =H3/(1+E8/100*G8) -> 0.999777549 | I8: =-100*LN(H8)/((D8-C2)/365) -> 0.06548681055 | J8: 0.01043595246 | K8: 0.04547093571 | AX8: 0.0600904618 | AY8: 0.9997481457 | AZ8: 0.0350572584
A9: Swap | B9: 5M | C9: 2012-11-16 | D9: =AddMonths(D3,5) -> 2013-04-16 | E9: 0.059 | F9: 151 | G9: 0.4194444444 | H9: =H3/(1+E9/100*G9) -> 0.9997503673 | I9: =-100*LN(H9)/((D9-C2)/365) -> 0.05956032445 | J9: 0.006571954522 | K9: 0.03421948734 | AY9: 0.0560332823 | AZ9: 0.9997191055 | BA9: 0.0342187984
A10: Swap | B10: 6M | C10: 2012-11-16 | D10: =AddMonths(D3,6) -> 2013-05-16 | E10: 0.055 | F10: 181 | G10: 0.5027777778 | H10: =H3/(1+E10/100*G10) -> 0.9997213271 | I10: =-100*LN(H10)/((D10-C2)/365) -> 0.05559005264 | J10: 0.005857734764 | K10: 0.03534166641 | AY10: 0.0529782707 | AZ10: 0.9996879849 | BA10: 0.03541322
A11: Swap | B11: 7M | C11: 2012-11-16 | D11: =AddMonths(D3,7) -> 2013-06-17 | E11: 0.052 | F11: 213 | G11: 0.5916666667 | H11: =H3/(1+E11/100*G11) -> 0.9996902064 | I11: =-100*LN(H11)/((D11-C2)/365) -> 0.05260101017 | J11: 0.005334448604 | K11: 0.03550742352 | AY11: 0.0509353129 | AZ11: 0.9996595589 | BA11: 0.0390955552
A12: Swap | B12: 8M | C12: 2012-11-16 | D12: =AddMonths(D3,8) -> 2013-07-16 | E12: 0.05 | F12: 242 | G12: 0.6722222222 | H12: =H3/(1+E12/100*G12) -> 0.9996617804 | I12: =-100*LN(H12)/((D12-C2)/365) -> 0.05060289067 | J12: 0.004288793957 | K12: 0.03578924613 | AY12: 0.0488938348 | AZ12: 0.9996316896 | BA12: 0.0479825344
A13: Swap | B13: 9M | C13: 2012-11-16 | D13: =AddMonths(D3,9) -> 2013-08-16 | E13: 0.048 | F13: 273 | G13: 0.7583333333 | H13: =H3/(1+E13/100*G13) -> 0.999633911 | I13: =-100*LN(H13)/((D13-C2)/365) -> 0.04859888566 | J13: 0.003727429422 | K13: 0.03282542684 | AY13: 0.047862067 | AZ13: 0.9995988259 | BA13: 0.0574579172
A14: Swap | B14: 10M | C14: 2012-11-16 | D14: =AddMonths(D3,10) -> 2013-09-16 | E14: 0.047 | F14: 304 | G14: 0.8444444444 | H14: =H3/(1+E14/100*G14) -> 0.9996010472 | I14: =-100*LN(H14)/((D14-C2)/365) -> 0.04759699827 | J14: 0.00394732867 | K14: 0.03870928761 | AY14: 0.0478416092 | AZ14: 0.999559692 | BA14: 0.0653905841
A15: Swap | B15: 11M | C15: 2012-11-16 | D15: =AddMonths(D3,11) -> 2013-10-16 | E15: 0.047 | F15: 334 | G15: 0.9277777778 | H15: =H3/(1+E15/100*G15) -> 0.9995619133 | I15: =-100*LN(H15)/((D15-C2)/365) -> 0.04760020735 | J15: 0.004278407783 | K15: 0.04763293999 | AY15: 0.0488306781 | AZ15: 0.9995064637 | BA15: 0.0711118671
A16: Swap | B16: 1Y | C16: 2012-11-16 | D16: =AddYears(D3,1) -> 2013-11-18 | E16: 0.048 | F16: 367 | G16: 1.019444444 | H16: =H3/(1+E16/100*G16) -> 0.9995086849 | I16: =-100*LN(H16)/((D16-C2)/365) -> 0.04861086505 | J16: 0.005296293002 | K16: 0.05890119794 | L16: =H16*M16 -> 1.018943576 | M16: =G16-0 -> 1.019444444 | AY16: 0.0578631126 | AZ16: 0.9991316379 | BA16: 0.1539058859
A17: Swap | B17: 18M | C17: 2012-11-16 | D17: =AddMonths(D3,18) -> 2014-05-16 | E17: 0.057 | F17: 546 | G17: 1.516666667 | H17: =(H3-E17/100*G16*H16)/(1+(G17-G16)*E17/100) -> 0.9991338088 | I17: =-100*LN(H17)/((D17-C2)/365) -> 0.05771839511 | J17: 0.02507742 | K17: 0.07649313585 | L17: 0.4967915327 | M17: =G17-G16 -> 0.4972222222 | AY17: 0.0861459267 | AZ17: 0.9982714966 | BA17: 0.2933351848
A18: Swap | B18: 2Y | C18: 2012-11-16 | D18: =AddYears(D3,2) -> 2014-11-17 | E18: 0.085 | F18: 731 | G18: 2.030555556 | H18: =(H3-E18/100*((G17-G16)*H17+G16*H16))/(1+E18/100*(G18-G17)) -> 0.9982733516 | I18: =-100*LN(H18)/((D18-C2)/365) -> 0.08605339496 | J18: 0.04301977837 | K18: 0.1699862594 | L18: 0.5130015835 | M18: 0.5138888889 | AY18: 0.1793087218 | AZ18: 0.9946254083 | BA18: 0.6852026398
A19: Swap | B19: 3Y | C19: 2012-11-16 | D19: =AddYears(D3,3) -> 2015-11-16 | E19: 0.177 | F19: 1095 | G19: 3.041666667 | H19: =(H3-E19/100*(H18*M18+H17*M17+H16*G16))/(1+E19/100*M19) -> 0.9946268633 | I19: =-100*LN(H19)/((D19-C2)/365) -> 0.1792600485 | J19: 0.1219827714 | K19: 0.3669536666 | L19: 1.005678273 | M19: 1.011111111 | AY19: 0.3377762799 | AZ19: 0.9865524239 | BA19: 1.162974023
A20: Swap | B20: 4Y | C20: 2012-11-16 | D20: =AddYears(D3,4) -> 2016-11-16 | E20: 0.333 | F20: 1461 | G20: 4.058333333 | H20: =(H3-E20/100*(H19*M19+H18*M18+H16*G16+M17*H17))/(1+E20/100*M20) -> 0.9865532001 | I20: =-100*LN(H20)/((D20-C2)/365) -> 0.3377566508 | J20: 0.2036206071 | K20: 0.8128134071 | L20: 1.002995753 | M20: 1.016666667 | AY20: 0.5348531397 | AZ20: 0.9735689619 | BA20: 1.538770174
A21: Swap | B21: 5Y | C21: 2012-11-16 | D21: =AddYears(D3,5) -> 2017-11-16 | E21: 0.526 | F21: 1826 | G21: 5.072222222 | H21: =(H3-E21/100*(H20*M20+H19*M19+H17*M17+M18*H18+H16*G16))/(1+E21/100*M21) -> 0.9735689004 | I21: =-100*LN(H21)/((D21-C2)/365) -> 0.5348544021 | J21: 0.2648279665 | K21: 1.324865389 | L21: 0.9870906907 | M21: 1.013888889 | AY21: 0.7291831887 | AZ21: 0.9571349114 | BA21: 1.961286388
A22: Swap | B22: 6Y | C22: 2012-11-16 | D22: =AddYears(D3,6) -> 2018-11-16 | E22: 0.715 | F22: 2191 | G22: 6.086111111 | H22: =(H3-E22/100*(H21*M21+H20*M20+H18*M18+M19*H19+H16*G16+M17*H17))/(1+E22/100*M22) -> 0.9571340356 | I22: =-100*LN(H22)/((D22-C2)/365) -> 0.7291984182 | J22: 0.2836231329 | K22: 1.702515847 | L22: 0.9704275639 | M22: 1.013888889 | AY22: 0.9304585132 | AZ22: 0.9368242735 | BA22: 2.180246213
A23: Swap | B23: 7Y | C23: 2012-11-16 | D23: =AddYears(D3,7) -> 2019-11-18 | E23: 0.909 | F23: 2558 | G23: 7.105555556 | H23: =(H3-E23/100*(H22*M22+H21*M21+H19*M19+M20*H20+H16*G16+M18*H18+M17*H17))/(1+E23/100*M23) -> 0.9368225728 | I23: =-100*LN(H23)/((D23-C2)/365) -> 0.9304843955 | J23: 0.3060625181 | K23: 2.133264091 | L23: 0.9550385673 | M23: 1.019444444 | AY23: 1.105312122 | AZ23: 0.9152609164 | BA23: 2.354569805
A24: Swap | B24: 8Y | C24: 2012-11-16 | D24: =AddYears(D3,8) -> 2020-11-16 | E24: 1.076 | F24: 2922 | G24: 8.116666667 | H24: =(H3-E24/100*(H23*M23+H22*M22+H20*M20+M21*H21+H16*G16+M19*H19+M18*H18+M17*H17))/(1+E24/100*M24) -> 0.9152585211 | I24: =-100*LN(H24)/((D24-C2)/365) -> 1.10534479 | J24: 0.2908925781 | K24: 2.335132179 | L24: 0.9254280602 | M24: 1.011111111 | AY24: 1.25959074 | AZ24: 0.8927031216 | BA24: 2.507695398
A25: Swap | B25: 9Y | C25: 2012-11-16 | D25: =AddYears(D3,9) -> 2021-11-16 | E25: 1.222 | F25: 3287 | G25: 9.130555556 | H25: =(H3-E25/100*(H24*M24+H23*M23+H21*M21+M22*H22+H16*G16+M20*H20+M19*H19+M18*H18+M17*H17))/(1+E25/100*M25) -> 0.8927001368 | I25: =-100*LN(H25)/((D25-C2)/365) -> 1.259627846 | J25: 0.27711829 | K25: 2.495583066 | L25: 0.9050987498 | M25: 1.013888889 | AY25: 1.397215652 | AZ25: 0.8694671861 | BA25: 2.627702784
A26: Swap | B26: 10Y | C26: 2012-11-16 | D26: =AddYears(D3,10) -> 2022-11-16 | E26: 1.351 | F26: 3652 | G26: 10.14444444 | H26: =(H3-E26/100*(H25*M25+H24*M24+H22*M22+M23*H23+H16*G16+M21*H21+M20*H20+M19*H19+M18*H18+M17*H17))/(1+E26/100*M26) -> 0.8694636993 | I26: =-100*LN(H26)/((D26-C2)/365) -> 1.39725571 | J26: 0.2635970376 | K26: 2.637414743 | L26: 0.881539584 | M26: 1.013888889
A27: Swap | B27: 11Y | C27: 2012-11-16 | D27: =AddYears(D3,11) -> 2023-11-16 | F27: 4017 | G27: 11.15833333 | H27: =H26+(H28-H26)*(G27-G26)/(G28-G26) -> 0.8452157933 | I27: =-100*LN(H27)/((D27-C2)/365) -> 1.527235811 | J27: 0.2570048192 | K27: 2.828461257 | L27: 0.8569549015 | M27: 1.013888889 | AY27: 1.643390451 | AZ27: 0.8207620633 | BA27: 2.662665408
A28: Swap | B28: 12Y | C28: 2012-11-16 | D28: =AddYears(D3,12) -> 2024-11-18 | E28: 1.578 | F28: 4385 | G28: 12.18055556 | H28: =(H3-E28/100*SUM(L16:L26)-E28/100*M27*H26*(1-M27/(M27+M28)))/(1+E28/100*(M28+POWER(M27,2)/(M28+M27))) -> 0.8207685894 | I28: =-100*LN(H28)/((D28-C2)/365) -> 1.643324295 | J28: 0.2443108231 | K28: 2.911149346 | L28: 0.8390078914 | M28: 1.022222222
A29: Swap | B29: 13Y | C29: 2012-11-16 | D29: =AddYears(D3,13) -> 2025-11-17 | F29: =D29-C29 -> 4749 | G29: 13.19166667 | H29: =H28+(H31-H28)/(M31+M30+M29)*M29 -> 0.7978571687 | I29: =-100*LN(H29)/((D29-C2)/365) -> 1.734926852 | J29: 0.2175981866 | K29: 2.838938979 | L29: 0.8067222483 | M29: 1.011111111
A30: Swap | B30: 14Y | C30: 2012-11-16 | D30: =AddYears(D3,14) -> 2026-11-16 | F30: =D30-C30 -> 5113 | G30: 14.20277778 | H30: =H28+(H31-H28)/(M31+M30+M29)*(M30+M29) -> 0.7749457479 | I30: =-100*LN(H30)/((D30-C2)/365) -> 1.819378749 | J30: 0.20799625 | K30: 2.921661611 | L30: 0.7835562562 | M30: 1.011111111 | AY30: 1.898914983 | AZ30: 0.7519410321 | BA30: 2.35524235
A31: Swap | B31: 15Y | C31: 2012-11-16 | D31: =AddYears(D3,15) -> 2027-11-16 | E31: 1.809 | F31: =D31-C31 -> 5478 | G31: 15.21666667 | H31: =(H3-E31/100*SUM(L16:L28)-E31/100*H28*(M30+M29-(POWER(M29,2)+(M30+M29)*M30)/(M31+M30+M29)))/(1+E31/100*(M31+(POWER(M29,2)+(M30+M29)*M30)/(M31+M30+M29))) -> 0.7519713837 | I31: =-100*LN(H31)/((D31-C2)/365) -> 1.898646139 | J31: 0.2005218222 | K31: 3.009475458 | L31: 0.7624154307 | M31: 1.013888889
A32: Swap | B32: 16Y | C32: 2012-11-16 | D32: =AddYears(D3,16) -> 2028-11-16 | F32: =D32-C32 -> 5844 | G32: =F32/360 -> 16.23333333 | H32: =H31+(H36-H31)/(M36+M35+M34+M33+M32)*M32 -> 0.7340476607 | I32: =-100*LN(H32)/((D32-C2)/365) -> 1.93039996 | J32: 0.1506737384 | K32: 2.405839692 | L32: 0.7462817883 | M32: 1.016666667
A33: Swap | B33: 17Y | C33: 2012-11-16 | D33: =AddYears(D3,17) -> 2029-11-16 | F33: =D33-C33 -> 6209 | G33: =F33/360 -> 17.24722222 | H33: =H31+(H36-H31)/(M36+M35+M34+M33+M32)*(M32+M33) -> 0.7161729096 | I33: =-100*LN(H33)/((D33-C2)/365) -> 1.961830322 | J33: 0.1449202707 | K33: 2.465232769 | L33: 0.7261197555 | M33: 1.013888889
A34: Swap | B34: 18Y | C34: 2012-11-16 | D34: =AddYears(D3,18) -> 2030-11-18 | F34: 6576 | G34: 18.26666667 | H34: =H31+(H36-H31)/(M36+M35+M34+M33+M32)*(M32+M33+M34) -> 0.6982002146 | I34: =-100*LN(H34)/((D34-C2)/365) -> 1.993402593 | J34: 0.1410696668 | K34: 2.527722422 | L34: 0.7117763299 | M34: 1.019444444
A35: Swap | B35: 19Y | C35: 2012-11-16 | D35: =AddYears(D3,19) -> 2031-11-17 | F35: 6940 | G35: 19.27777778 | H35: =H31+(H36-H31)/(M36+M35+M34+M33+M32)*(M32+M33+M34+M35) -> 0.6803744354 | I35: =-100*LN(H35)/((D35-C2)/365) -> 2.024861381 | J35: 0.1360209584 | K35: 2.593366624 | L35: 0.6879341514 | M35: 1.011111111 | AY35: 2.05691877 | AZ35: 0.6624711749 | BA35: 2.187432011
A36: Swap | B36: 20Y | C36: 2012-11-16 | D36: =AddYears(D3,20) -> 2032-11-16 | E36: 1.956 | F36: =D36-C36 -> 7305 | G36: 20.29166667 | H36: =(H3-E36/100*SUM(L16:L31)-E36/100*H31*(M32+M33+M34+M35-O36))/(1+E36/100*(M36+O36)) -> 0.6624996843 | I36: =-100*LN(H36)/((D36-C2)/365) -> 2.056703806 | J36: 0.133024915 | K36: 2.66232056 | L36: 0.6717010688 | M36: 1.013888889 | N36: T | O36: =(POWER(M32,2)+(M32+M33)*M33+(M32+M33+M34)*M34+(M32+M33+M34+M35)*M35)/(M32+M33+M34+M35+M36) -> 2.031115064
A37: Swap | B37: 21Y | C37: 2012-11-16 | D37: =AddYears(D3,21) -> 2033-11-16 | F37: =D37-C37 -> 7670 | G37: 21.30555556 | H37: =H36+(H41-H36)/(M37+M38+M39+M40+M41)*M37 -> 0.6484059385 | I37: =-100*LN(H37)/((D37-C2)/365) -> 2.061157333 | J37: 0.1023291197 | K37: 2.150313282 | L37: 0.6574115765 | M37: 1.013888889
A38: Swap | B38: 22Y | C38: 2012-11-16 | D38: =AddYears(D3,22) -> 2034-11-16 | F38: =D38-C38 -> 8035 | G38: 22.31944444 | H38: =H36+(H41-H36)/(M37+M38+M39+M40+M41)*(M37+M38) -> 0.6343121927 | I38: =-100*LN(H38)/((D38-C2)/365) -> 2.067352499 | J38: 0.09982737636 | K38: 2.197569778 | L38: 0.6431220843 | M38: 1.013888889
A39: Swap | B39: 23Y | C39: 2012-11-16 | D39: =AddYears(D3,23) -> 2035-11-16 | F39: 8400 | G39: 23.33333333 | H39: =H36+(H41-H36)/(M37+M38+M39+M40+M41)*(M37+M38+M39) -> 0.6202184469 | I39: =-100*LN(H39)/((D39-C2)/365) -> 2.075154585 | J39: 0.09763533201 | K39: 2.246950107 | L39: 0.628832592 | M39: 1.013888889
A40: Swap | B40: 24Y | C40: 2012-11-16 | D40: =AddYears(D3,24) -> 2036-11-17 | F40: 8767 | G40: 24.35277778 | H40: =H36+(H41-H36)/(M37+M38+M39+M40+M41)*(M37+M38+M39+M40) -> 0.6060474751 | I40: =-100*LN(H40)/((D40-C2)/365) -> 2.084512354 | J40: 0.096229042 | K40: 2.298746624 | L40: 0.6178317315 | M40: 1.019444444 | AY40: 2.095101727 | AZ40: 0.5920082952 | BA40: 2.1355341
A41: Swap | B41: 25Y | C41: 2012-11-16 | D41: =AddYears(D3,25) -> 2037-11-16 | E41: 2 | F41: =D41-C41 -> 9131 | G41: 25.36388889 | H41: =(H3-E41/100*SUM(L16:L36)-E41/100*H36*(M37+M38+M39+M40-O41))/(1+E41/100*(M41+O41)) -> 0.5919923423 | I41: =-100*LN(H41)/((D41-C2)/365) -> 2.095209422 | J41: 0.09379682643 | K41: 2.352908852 | L41: 0.598570035 | M41: 1.011111111 | N41: T | O41: =(POWER(M37,2)+(M37+M38)*M38+(M37+M38+M39)*M39+(M37+M38+M39+M40)*M40)/(M37+M38+M39+M40+M41) -> 2.032225873
A42: Swap | B42: 26Y | C42: 2012-11-16 | D42: =AddYears(D3,26) -> 2038-11-16 | F42: =D42-C42 -> 9496 | G42: 26.37777778 | H42: =H41+(H46-H41)/(M42+M43+M44+M45+M46)*M42 -> 0.5798026683 | I42: =-100*LN(H42)/((D42-C2)/365) -> 2.094647537 | J42: 0.07997205711 | K42: 2.080588094 | L42: 0.5878554831 | M42: 1.013888889
A43: Swap | B43: 27Y | C43: 2012-11-16 | D43: =AddYears(D3,27) -> 2039-11-16 | F43: =D43-C43 -> 9861 | G43: 27.39166667 | H43: =H41+(H46-H41)/(M42+M43+M44+M45+M46)*(M42+M43) -> 0.5676129942 | I43: =-100*LN(H43)/((D43-C2)/365) -> 2.095763316 | J43: 0.07864833955 | K43: 2.124798017 | L43: 0.575496508 | M43: 1.013888889
A44: Swap | B44: 28Y | C44: 2012-11-16 | D44: =AddYears(D3,28) -> 2040-11-16 | F44: 10227 | G44: 28.40833333 | H44: =H41+(H46-H41)/(M42+M43+M44+M45+M46)*(M42+M43+M44) -> 0.5553899239 | I44: =-100*LN(H44)/((D44-C2)/365) -> 2.098455068 | J44: 0.07769466217 | K44: 2.17099265 | L44: 0.5646464226 | M44: 1.016666667
A45: Swap | B45: 29Y | C45: 2012-11-16 | D45: =AddYears(D3,29) -> 2041-11-18 | F45: 10594 | G45: 29.42777778 | H45: =H41+(H46-H41)/(M42+M43+M44+M45+M46)*(M42+M43+M44+M45) -> 0.5431334571 | I45: =-100*LN(H45)/((D45-C2)/365) -> 2.102643236 | J45: 0.07688416459 | K45: 2.219375585 | L45: 0.5536943854 | M45: 1.019444444 | AY45: 2.107817593 | AZ45: 0.5310374344 | BA45: 2.084475735
A46: Swap | B46: 30Y | C46: 2012-11-16 | D46: =AddYears(D3,30) -> 2042-11-17 | E46: 2.02 | F46: =D46-C46 -> 10958 | G46: 30.43888889 | H46: =(H3-E46/100*SUM(L16:L41)-E46/100*H41*(M42+M43+M44+M45-O46))/(1+E46/100*(M46+O46)) -> 0.5309771795 | I46: =-100*LN(H46)/((D46-C2)/365) -> 2.108195491 | J46: 0.0753983255 | K46: 2.269821019 | L46: 0.5368769259 | M46: 1.011111111 | N46: T | O46: =(POWER(M42,2)+(M42+M43)*M43+(M42+M43+M44)*M44+(M42+M43+M44+M45)*M45)/(M42+M43+M44+M45+M46) -> 2.033892842

Sheet EUR_1M
A1: Instrument | B1: Tenor | C1: Stamp | D1: Maturity | E1: Mkt.Values | F1: days | G1: t (Act/360) | H1: Discount Factor | I1: Zero Rate | J1: Forward rate | K1: Δt
A2: M. Mkt. | B2: O/N | C2: 2012-11-14 | D2: =AddDays(C2,1) -> 2012-11-15 | E2: 0.01429 | F2: =D2-C2 -> 1 | G2: =F2/360 -> 0.002777777778 | H2: =1/(1+E2/100*G2) -> 0.9999996031 | I2: =-100*LN(H2)/(F2/365) -> 0.01448846935 | J2: =I2 -> 0.01448846935
A3: M. Mkt. | B3: T/N | C3: 2012-11-15 | D3: =AddDays(C3,1) -> 2012-11-16 | E3: 0.01429 | F3: =D3-C3 -> 1 | G3: 0.002777777778 | H3: =1/(1+E3/100*G3) -> 0.9999996031 | I3: 0.01448846935 | J3: =I3 -> 0.01448846935
A4: M. Mkt. | B4: 1W | C4: 2012-11-16 | D4: =AddDays(D3,7) -> 2012-11-23 | E4: 0.078 | F4: 7 | G4: 0.01944444444 | H4: =H2/(1+E4/100*G4) -> 0.9999844366 | I4: 0.08115251496 | J4: =36500*(LN(H3)-LN(H4))/(D4-D3) -> 0.07908273362
A5: M. Mkt. | B5: 1M | C5: 2012-11-16 | D5: =AddMonths(D3,1) -> 2012-12-17 | E5: 0.108 | F5: 31 | G5: 0.08611111111 | H5: =$H$3/(1+E5/100*G5) -> 0.9999066117 | I5: 0.1099622785 | J5: 0.1183651263
A6: Fra | B6: 1X2 | C6: =D6-30 -> 2012-12-17 | D6: 2013-01-16 | E6: 0.11 | F6: 30 | G6: 0.08333333333 | H6: 0.9999079448 | I6: 0.1120056154 | J6: -0.001622072451
A7: Fra | B7: 2X3 | C7: =D7-30 -> 2013-01-19 | D7: 2013-02-18 | E7: 0.089 | F7: 30 | G7: 0.08333333333 | H7: 0.9999254419 | I7: 0.090715714 | J7: -0.0193544558
A8: Fra | B8: 3X4 | C8: =D8-30 -> 2013-02-16 | D8: 2013-03-18 | E8: 0.087 | F8: 30 | G8: 0.08333333333 | H8: 0.9999271083 | I8: 0.08868808491 | J8: -0.002172459734
A9: Fra | B9: 4X5 | C9: =D9-30 -> 2013-03-17 | D9: 2013-04-16 | E9: 0.076 | F9: 30 | G9: 0.08333333333 | H9: 0.9999362738 | I9: 0.07753606454 | J9: -0.0115365728
A10: Fra | B10: 5X6 | C10: =D10-30 -> 2013-04-16 | D10: 2013-05-16 | E10: 0.078 | F10: 30 | G10: 0.08333333333 | H10: 0.9999346073 | I10: 0.07956371221 | J10: 0.00202764767
A11: Fra | B11: 6X7 | C11: 2013-05-18 | D11: 2013-06-17 | E11: 0.075 | F11: 30 | G11: 0.08333333333 | H11: 0.999937107 | I11: 0.07652223944 | J11: -0.002851380724
A12: Fra | B12: 7X8 | C12: 2013-06-16 | D12: 2013-07-16 | E12: 0.077 | F12: 30 | G12: 0.08333333333 | H12: 0.9999354405 | I12: 0.0785498888 | J12: 0.002097568303
A13: Fra | B13: 8X9 | C13: 2013-07-17 | D13: 2013-08-16 | E13: 0.08 | F13: 30 | G13: 0.08333333333 | H13: 0.9999329409 | I13: 0.08159135651 | J13: 0.002943355842
A14: Fra | B14: 9X10 | C14: 2013-08-17 | D14: 2013-09-16 | E14: 0.085 | F14: 30 | G14: 0.08333333333 | H14: 0.9999287748 | I14: 0.08666045245 | J14: 0.00490557672
A15: Fra | B15: 10X11 | C15: 2013-09-16 | D15: 2013-10-16 | E15: 0.089 | F15: 30 | G15: 0.08333333333 | H15: 0.9999254419 | I15: 0.090715714 | J15: 0.004055261549
A16: Swap | B16: 1Y | C16: 2012-11-16 | D16: =AddYears(D3,1) -> 2013-11-18 | E16: 0.089 | F16: 367 | G16: 1.019444444 | H16: 0.9990931203 | I16: 0.09023467811 | J16: 0.9210501651 | K16: =+G16 -> 1.019444444
A17: Swap | B17: 2Y | C17: 2012-11-16 | D17: =AddYears(D3,2) -> 2014-11-17 | E17: 0.134 | F17: 731 | G17: 2.030555556 | H17: =(H3-E17/100*((G16-G15)*H16+G15*H15))/(1+E17/100*(G17-G16)) -> 0.9972834851 | I17: 0.1358245055 | J17: 0.1817900733 | K17: =G17-G16 -> 1.011111111
A18: Swap | B18: 3Y | C18: 2012-11-16 | D18: =AddYears(D3,3) -> 2015-11-16 | E18: 0.238 | F18: 1095 | G18: 3.041666667 | H18: =(H3-E18/100*(H17*K17+H16*K16+H15*G15))/(1+E18/100*K18) -> 0.9925886902 | I18: 0.2479636659 | J18: 0.4731662105 | K18: 1.011111111
A19: Swap | B19: 4Y | C19: 2012-11-16 | D19: =AddYears(D3,4) -> 2016-11-16 | E19: 0.397 | F19: 1461 | G19: 4.058333333 | H19: =(H3-E19/100*(H18*K18+H17*K17+H16*K16+H15*G15))/(1+E19/100*K19) -> 0.9836674565 | I19: 0.4114029623 | J19: 0.900381185 | K19: 1.016666667
A20: Swap | B20: 5Y | C20: 2012-11-16 | D20: =AddYears(D3,5) -> 2017-11-16 | E20: 0.589 | F20: 1826 | G20: 5.072222222 | H20: =(H3-E20/100*(H19*K19+H18*K18+H17*K17+H16*K16+H15*G15))/(1+E20/100*K20) -> 0.9699762763 | I20: 0.6093394186 | J20: 1.401627536 | K20: 1.013888889
A21: Swap | B21: 6Y | C21: 2012-11-16 | D21: =AddYears(D3,6) -> 2018-11-16 | E21: 0.789 | F21: 2191 | G21: 6.086111111 | H21: =(H3-E21/100*(H20*K20+H19*K19+H18*K18+H17*K17+H16*K16+H15*G15))/(1+E21/100*K21) -> 0.9521646777 | I21: 0.8165817719 | J21: 1.853361326 | K21: 1.013888889
A22: Swap | B22: 7Y | C22: 2012-11-16 | D22: =AddYears(D3,7) -> 2019-11-18 | E22: 0.977 | F22: 2558 | G22: 7.105555556 | H22: =(H3-E22/100*(H21*K21+H20*K20+H19*K19+H18*K18+H17*K17+H16*K16+H15*G15))/(1+E22/100*K22) -> 0.9314891427 | I22: 1.012678727 | J22: 2.183382891 | K22: 1.019444444
A23: Swap | B23: 8Y | C23: 2012-11-16 | D23: =AddYears(D3,8) -> 2020-11-16 | E23: 1.146 | F23: 2922 | G23: 8.116666667 | H23: =(H3-E23/100*(H22*K22+H21*K21+H20*K20+H19*K19+H18*K18+H17*K17+H16*K16+H15*G15))/(1+E23/100*K23) -> 0.9091042121 | I23: 1.190379005 | J23: 2.439162825 | K23: 1.011111111
A24: Swap | B24: 9Y | C24: 2012-11-16 | D24: =AddYears(D3,9) -> 2021-11-16 | E24: 1.295 | F24: 3287 | G24: 9.130555556 | H24: =(H3-E24/100*(H23*K23+H22*K22+H21*K21+H20*K20+H19*K19+H18*K18+H17*K17+H16*K16+H15*G15))/(1+E24/100*K24) -> 0.8856576628 | I24: 1.348343403 | J24: 2.612924147 | K24: 1.013888889
A25: Swap | B25: 10Y | C25: 2012-11-16 | D25: =AddYears(D3,10) -> 2022-11-16 | E25: 1.427 | F25: 3652 | G25: 10.14444444 | H25: =(H3-E25/100*(H24*K24+H23*K23+H22*K22+H21*K21+H20*K20+H19*K19+H18*K18+H17*K17+H16*K16+H15*G15))/(1+E25/100*K25) -> 0.8615378346 | I25: 1.489546879 | J25: 2.761151879 | K25: 1.013888889
A26: Swap | B26: 11Y | C26: 2012-11-16 | D26: =AddYears(D3,11) -> 2023-11-16 | F26: 4017 | G26: 11.15833333 | H26: =EXP(-(I26/100)*(F26/365)) -> 0.8357114381 | I26: =I25+(D26-D25)*(I25-I24)/(D25-D24) -> 1.630750355 | J26: 3.043558831 | K26: 1.013888889
A27: Swap | B27: 12Y | C27: 2012-11-16 | D27: =AddYears(D3,12) -> 2024-11-18 | E27: 1.657 | F27: 4385 | G27: 12.18055556 | H27: =(H3-E27/100*(H26*K26+H25*K25+H24*K24+H23*K23+H22*K22+H21*K21+H20*K20+H19*K19+H18*K18+H17*K17+H16*K16+H15*G15))/(1+E27/100*K27) -> 0.8114365799 | I27: =-100*LN(H27)/(F27/365) -> 1.739256603 | K27: 1.022222222
A28: Swap | B28: 13Y | C28: 2012-11-16 | D28: =AddYears(D3,13) -> 2025-11-17 | F28: 4749 | G28: 13.19166667 | H28: =EXP(-(I28/100)*(F28/365)) -> 0.7847202719 | I28: =I27+(D28-D27)*(I27-I25)/(D27-D25) -> 1.863259796 | J28: =36500*(LN(H27)-LN(H28))/(D28-D27) -> 3.357089458 | K28: 1.011111111
A29: Swap | B29: 14Y | C29: 2012-11-16 | D29: =AddYears(D3,14) -> 2026-11-16 | F29: 5113 | G29: 14.20277778 | H29: =EXP(-(I29/100)*(F29/365)) -> 0.7570089861 | I29: =I27+(D29-D27)*(I27-I25)/(D27-D25) -> 1.987262988 | J29: =36500*(LN(H28)-LN(H29))/(D29-D28) -> 3.605095842 | K29: 1.011111111
A30: Swap | B30: 15Y | C30: 2012-11-16 | D30: =AddYears(D3,15) -> 2027-11-16 | E30: 1.889 | F30: 5478 | G30: 15.21666667 | H30: =(H3-E30/100*(H29*K29+H28*K28+H27*K27+H26*K26+H25*K25+H24*K24+H23*K23+H22*K22+H21*K21+H20*K20+H19*K19+H18*K18+H17*K17+H16*K16+H15*G15))/(1+E30/100*K30) -> 0.7413892682 | I30: =-100*LN(H30)/(F30/365) -> 1.993770612 | K30: 1.013888889
A31: Swap | B31: 16Y | C31: 2012-11-16 | D31: =AddYears(D3,16) -> 2028-11-16 | F31: 5844 | G31: 16.23333333 | H31: =EXP(-(I31/100)*(F31/365)) -> 0.7168653093 | I31: =I30+(D31-D30)*(I30-I27)/(D30-D27) -> 2.078996712 | J31: =36500*(LN(H30)-LN(H31))/(D31-D30) -> 3.354593913 | K31: 1.016666667
A32: Swap | B32: 17Y | C32: 2012-11-16 | D32: =AddYears(D3,17) -> 2029-11-16 | F32: 6209 | G32: 17.24722222 | H32: =EXP(-(I32/100)*(F32/365)) -> 0.6920372871 | I32: =I30+(D32-D30)*(I30-I27)/(D30-D27) -> 2.163989954 | J32: =36500*(LN(H31)-LN(H32))/(D32-D31) -> 3.524813254 | K32: 1.013888889
A33: Swap | B33: 18Y | C33: 2012-11-16 | D33: =AddYears(D3,18) -> 2030-11-18 | F33: 6576 | G33: 18.26666667 | H33: =EXP(-(I33/100)*(F33/365)) -> 0.666796367 | I33: =I30+(D33-D30)*(I30-I27)/(D30-D27) -> 2.249448912 | J33: =36500*(LN(H32)-LN(H33))/(D33-D32) -> 3.695265454 | K33: 1.019444444
A34: Swap | B34: 19Y | C34: 2012-11-16 | D34: =AddYears(D3,19) -> 2031-11-17 | F34: 6940 | G34: 19.27777778 | H34: =EXP(-(I34/100)*(F34/365)) -> 0.6415812024 | I34: =I30+(D34-D30)*(I30-I27)/(D30-D27) -> 2.334209296 | J34: =36500*(LN(H33)-LN(H34))/(D34-D33) -> 3.865484796 | K34: 1.011111111
A35: Swap | B35: 20Y | C35: 2012-11-16 | D35: =AddYears(D3,20) -> 2032-11-16 | E35: 2.033 | F35: 7305 | G35: 20.29166667 | H35: =(H3-E35/100*(H34*K34+H33*K33+H32*K32+H31*K31+H30*K30+H29*K29+H28*K28+H27*K27+H26*K26+H25*K25+H24*K24+H23*K23+H22*K22+H21*K21+H20*K20+H19*K19+H18*K18+H17*K17+H16*K16+H15*G15))/(1+E35/100*K35) -> 0.6521438461 | I35: =-100*LN(H35)/(F35/365) -> 2.135987588 | K35: 1.013888889 | L35: T | M35: =(POWER(K31,2)*(K31+K32)*K32+(K31+K32+K33)*K33+(K31+K32+K33+K34)*K34)/(K31+K32+K33+K34+K35) -> 1.841082753
A36: Swap | B36: 21Y | C36: 2012-11-16 | D36: =AddYears(D3,21) -> 2033-11-16 | F36: 7670 | G36: 21.30555556 | H36: =EXP(-(I36/100)*(F36/365)) -> 0.6345618864 | I36: =I35+(D36-D35)*(I35-I30)/(D35-D30) -> 2.164399846 | J36: =36500*(LN(H35)-LN(H36))/(D36-D35) -> 2.733034223 | K36: =G36-G35 -> 1.013888889
A37: Swap | B37: 22Y | C37: 2012-11-16 | D37: =AddYears(D3,22) -> 2034-11-16 | F37: 8035 | G37: 22.31944444 | H37: =EXP(-(I37/100)*(F37/365)) -> 0.6171031752 | I37: =I35+(D37-D35)*(I35-I30)/(D35-D30) -> 2.192812105 | J37: =36500*(LN(H36)-LN(H37))/(D37-D36) -> 2.78985874 | K37: 1.013888889
A38: Swap | B38: 23Y | C38: 2012-11-16 | D38: =AddYears(D3,23) -> 2035-11-16 | F38: 8400 | G38: 23.33333333 | H38: =EXP(-(I38/100)*(F38/365)) -> 0.5997838847 | I38: =I35+(D38-D35)*(I35-I30)/(D35-D30) -> 2.221224363 | J38: =36500*(LN(H37)-LN(H38))/(D38-D37) -> 2.846683257 | K38: =G38-G37 -> 1.013888889
A39: Swap | B39: 24Y | C39: 2012-11-16 | D39: =AddYears(D3,24) -> 2036-11-17 | F39: 8767 | G39: 24.35277778 | H39: =EXP(-(I39/100)*(F39/365)) -> 0.5825259063 | I39: =I35+(D39-D35)*(I35-I30)/(D35-D30) -> 2.249792305 | J39: =36500*(LN(H38)-LN(H39))/(D39-D38) -> 2.903663457 | K39: 1.019444444
A40: Swap | B40: 25Y | C40: 2012-11-16 | D40: =AddYears(D3,25) -> 2037-11-16 | E40: 2.074 | F40: 9131 | G40: 25.36388889 | H40: =(H3-E40/100*(H39*K39+H38*K38+H37*K37+H36*K36+H35*K35+H34*K34+H33*K33+H32*K32+H31*K31+H30*K30+H29*K29+H28*K28+H27*K27+H26*K26+H25*K25+H24*K24+H23*K23+H22*K22+H21*K21+H20*K20+H19*K19+H18*K18+H17*K17+H16*K16+H15*G15))/(1+E40/100*K40) -> 0.5816815562 | I40: =-100*LN(H40)/(F40/365) -> 2.165904385 | K40: 1.011111111 | L40: T | M40: =(POWER(K36,2)+(K36+K37)*K37+(K36+K37+K38)*K38+(K36+K37+K38+K39)*K39)/(K36+K37+K38+K39+K40) -> 2.032225873
A41: Swap | B41: 26Y | C41: 2012-11-16 | D41: =AddYears(D3,26) -> 2038-11-16 | F41: 9496 | G41: 26.37777778 | H41: =EXP(-(I41/100)*(F41/365)) -> 0.5683334438 | I41: =I40+(D41-D40)*(I40-I35)/(D40-D35) -> 2.171884467 | J41: =36500*(LN(H40)-LN(H41))/(D41-D40) -> 2.321484835 | K41: 1.013888889
A42: Swap | B42: 27Y | C42: 2012-11-16 | D42: =AddYears(D3,27) -> 2039-11-16 | F42: 9861 | G42: 27.39166667 | H42: =EXP(-(I42/100)*(F42/365)) -> 0.5552252267 | I42: =I40+(D42-D40)*(I40-I35)/(D40-D35) -> 2.17786455 | J42: =36500*(LN(H41)-LN(H42))/(D42-D41) -> 2.333445001 | K42: 1.013888889
A43: Swap | B43: 28Y | C43: 2012-11-16 | D43: =AddYears(D3,28) -> 2040-11-16 | F43: 10227 | G43: 28.40833333 | H43: =EXP(-(I43/100)*(F43/365)) -> 0.5423195329 | I43: =I40+(D43-D40)*(I40-I35)/(D40-D35) -> 2.183861016 | J43: =36500*(LN(H42)-LN(H43))/(D43-D42) -> 2.34542155 | K43: 1.016666667
A44: Swap | B44: 29Y | C44: 2012-11-16 | D44: =AddYears(D3,29) -> 2041-11-18 | F44: 10594 | G44: 29.42777778 | H44: =EXP(-(I44/100)*(F44/365)) -> 0.5296158269 | I44: =I40+(D44-D40)*(I40-I35)/(D40-D35) -> 2.189873867 | J44: =36500*(LN(H43)-LN(H44))/(D44-D43) -> 2.357430866 | K44: 1.019444444
A45: Swap | B45: 30Y | C45: 2012-11-16 | D45: =AddYears(D3,30) -> 2042-11-17 | E45: 2.094 | F45: 10958 | G45: 30.43888889 | H45: =(H3-E45/100*(H44*K44+H43*K43+H42*K42+H41*K41+H40*K40+H39*K39+H38*K38+H37*K37+H36*K36+H35*K35+H34*K34+H33*K33+H32*K32+H31*K31+H30*K30+H29*K29+H28*K28+H27*K27+H26*K26+H25*K25+H24*K24+H23*K23+H22*K22+H21*K21+H20*K20+H19*K19+H18*K18+H17*K17+H16*K16+H15*G15))/(1+E45/100*K45) -> 0.5199339187 | I45: =-100*LN(H45)/(F45/365) -> 2.178586855 | K45: 1.011111111 | L45: T | M45: =(POWER(K41,2)+(K41+K42)*K42+(K41+K42+K43)*K43+(K41+K42+K43+K44)*K44)/(K41+K42+K43+K44+K45) -> 2.033892842

Sheet EUR_3M.
A1: Instrument | B1: Tenor | C1: Stamp | D1: Maturity | E1: Mkt.Values | F1: days | G1: t (Act/360) | H1: Discount factor | I1: ZERO | J1: Forward rate | K1: y
A2: M. Mkt. | B2: O/N | C2: 2012-11-14 | D2: =AddDays(C2,1) -> 2012-11-15 | E2: 0.01429 | F2: =D2-C2 -> 1 | G2: =F2/360 -> 0.002777777778 | H2: =1/(1+E2/100*G2) -> 0.9999996031 | I2: =-100*LN(H2)/(F2/365) -> 0.01448846935 | J2: =+I2 -> 0.01448846935
A3: M. Mkt. | B3: T/N | C3: 2012-11-14 | D3: =AddDays(C3,2) -> 2012-11-16 | E3: 0.01429 | F3: =D3-C3 -> 2 | G3: 0.005555555556 | H3: =H2/(1+E3/100*G3) -> 0.9999988092 | I3: 0.02173270114 | J3: =36500*(LN(H2)-LN(H3))/(D3-D2) -> 0.02897693294
A4: M. Mkt. | B4: 1W | C4: 2012-11-16 | D4: =AddDays(D3,7) -> 2012-11-23 | E4: 0.078 | F4: 7 | G4: 0.01944444444 | H4: =H3/(1+E4/100*G4) -> 0.9999836427 | I4: 0.08529207681 | J4: 0.07908273362
A5: M. Mkt. | B5: 1M | C5: 2012-11-16 | D5: =AddMonths(D3,1) -> 2012-12-17 | E5: 0.108 | F5: 31 | G5: 0.08611111111 | H5: =H3/(1+E5/100*G5) -> 0.9999058179 | I5: 0.1108970183 | J5: 0.1183651263
A6: M. Mkt. | B6: 1X2 | C6: 2012-11-16 | D6: =AddMonths(D3,2) -> 2013-01-16 | E6: 0.144 | F6: 61 | G6: 0.1694444444 | H6: =H3/(1+E6/100*G6) -> 0.999754869 | I6: 0.1466947385 | J6: 0.183685716
A7: M. Mkt. | B7: 2X3 | C7: 2012-11-16 | D7: =AddMonths(D3,3) -> 2013-02-18 | E7: 0.191 | F7: 94 | G7: 0.2611111111 | H7: =H3/(1+E7/100*G7) -> 0.9995003361 | I7: 0.1940669023 | J7: 0.2816336292
A8: Fra | B8: 5X6 | C8: =D8-91 -> 2013-02-14 | D8: =AddMonths(D3,6) -> 2013-05-16 | E8: 0.16 | F8: 91 | G8: =F8/360 -> 0.2527777778 | H8: =H3/(1+E8/100*G8) -> 0.9995945287 | I8: 0.1626670679 | J8: -0.03953546703
A9: Fra | B9: 8X9 | C9: =D9-91 -> 2013-05-17 | D9: =AddMonths(D3,9) -> 2013-08-16 | E9: 0.16 | F9: 91 | G9: 0.2527777778 | H9: =H3/(1+E9/100*G9) -> 0.9995945287 | I9: 0.1626670679 | J9: 0
A10: Fra | B10: 1Y | C10: =D10-91 -> 2013-08-19 | D10: =AddYears(D3,1) -> 2013-11-18 | E10: 0.18 | F10: 91 | G10: =F10/360 -> 0.2527777778 | H10: =H3/(1+E10/100*G10) -> 0.9995440166 | I10: 0.1829361356 | J10: 0.01962218257 | K10: =+G10 -> 0.2527777778 | M10: =(LN(H8)-LN(H9)) -> 0 | R10: T | S10: 2020-12-12
A11: Swap | B11: 2Y | C11: 2012-11-16 | D11: =AddYears(D3,2) -> 2014-11-17 | E11: 0.234 | F11: 731 | G11: 2.030555556 | H11: =(H3-E11/100*((G10-G9)*H10+G9*H9))/(1+E11/100*(G11-G10)) -> 0.9952672373 | I11: 0.2368753975 | J11: 0.4299690308 | K11: =G11-G10 -> 1.777777778 | R11: RATE | S11: =interpol(U10;D2:D39;M2:M39)
A12: Swap | B12: 3Y | C12: 2012-11-16 | D12: =AddYears(D3,3) -> 2015-11-16 | E12: 0.346 | F12: 1095 | G12: 3.041666667 | H12: =(H3-E12/100*(H11*K11+H10*K10+H9*G9))/(1+E12/100*K12) -> 0.9886695356 | I12: 0.3798381053 | J12: 0.666941785 | K12: 1.011111111
A13: Swap | B13: 4Y | C13: 2012-11-16 | D13: =AddYears(D3,4) -> 2016-11-16 | E13: 0.5085 | F13: 1461 | G13: 4.058333333 | H13: =(H3-E13/100*(H12*K12+H11*K11+H10*K10+H9*G9))/(1+E13/100*K13) -> 0.9782911854 | I13: 0.5483223797 | J13: 1.052394184 | K13: 1.016666667
A14: Swap | B14: 5Y | C14: 2012-11-16 | D14: =AddYears(D3,5) -> 2017-11-16 | E14: 0.7015 | F14: 1826 | G14: 5.072222222 | H14: =(H3-E14/100*(H13*K13+H12*K12+H11*K11+H10*K10+H9*G9))/(1+E14/100*K14) -> 0.9632014038 | I14: 0.7494442853 | J14: 1.554482927 | K14: 1.013888889
A15: Swap | B15: 6Y | C15: 2012-11-16 | D15: =AddYears(D3,6) -> 2018-11-16 | E15: 0.9023 | F15: 2191 | G15: 6.086111111 | H15: =(H3-E15/100*(H14*K14+H13*K13+H12*K12+H11*K11+H10*K10+H9*G9))/(1+E15/100*K15) -> 0.9440320691 | I15: 0.9594809129 | J15: 2.010239494 | K15: 1.013888889
A16: Swap | B16: 7Y | C16: 2012-11-16 | D16: =AddYears(D3,7) -> 2019-11-18 | E16: 1.093 | F16: 2558 | G16: 7.105555556 | H16: =(H3-E16/100*(H15*K15+H14*K14+H13*K13+H12*K12+H11*K11+H10*K10+H9*G9))/(1+E16/100*K16) -> 0.9219309262 | I16: 1.159852076 | J16: 2.35607338 | K16: 1.019444444
A17: Swap | B17: 8Y | C17: 2012-11-16 | D17: =AddYears(D3,8) -> 2020-11-16 | E17: 1.261 | F17: 2922 | G17: 8.116666667 | H17: =(H3-E17/100*(H16*K16+H15*K15+H14*K14+H13*K13+H12*K12+H11*K11+H10*K10+H9*G9))/(1+E17/100*K17) -> 0.8984758048 | I17: 1.337277826 | J17: 2.584132409 | K17: 1.011111111
A18: Swap | B18: 9Y | C18: 2012-11-16 | D18: =AddYears(D3,9) -> 2021-11-16 | E18: 1.409 | F18: 3287 | G18: 9.130555556 | H18: =(H3-E18/100*(H17*K17+H16*K16+H15*K15+H14*K14+H13*K13+H12*K12+H11*K11+H10*K10+H9*G9))/(1+E18/100*K18) -> 0.874073589 | I18: 1.494542403 | J18: 2.753520739 | K18: 1.013888889
A19: Swap | B19: 10Y | C19: 2012-11-16 | D19: =AddYears(D3,10) -> 2022-11-16 | E19: 1.54 | F19: 3652 | G19: 10.14444444 | H19: =(H3-E19/100*(H18*K18+H17*K17+H16*K16+H15*K15+H14*K14+H13*K13+H12*K12+H11*K11+H10*K10+H9*G9))/(1+E19/100*K19) -> 0.8491079727 | I19: 1.634793467 | J19: 2.897821545 | K19: 1.013888889
A20: Swap | B20: 11Y | C20: 2012-11-16 | D20: =AddYears(D3,11) -> 2023-11-16 | F20: 4017 | G20: 11.15833333 | H20: =EXP(-(I20/100)*(F20/365)) -> 0.8225449387 | I20: =I19+(D20-D19)*(I19-I18)/(D19-D18) -> 1.775044531 | J20: 3.178323673 | K20: 1.013888889
A21: Swap | B21: 12Y | C21: 2012-11-16 | D21: =AddYears(D3,12) -> 2024-11-18 | E21: 1.766 | F21: 4385 | G21: 12.18055556 | H21: =(H5-E21/100*(H20*K20+H19*K19+H18*K18+H17*K17+H16*K16+H15*K15+H14*K14+H13*K13+H12*K12+H11*K11+H10*K10+H9*G9))/(1+E21/100*K21) -> 0.7977421695 | I21: =-100*LN(H21)/(F21/365) -> 1.880934727 | K21: 1.022222222
A22: Swap | B22: 13Y | C22: 2012-11-16 | D22: =AddYears(D3,13) -> 2025-11-17 | F22: 4749 | G22: 13.19166667 | H22: =EXP(-(I22/100)*(F22/365)) -> 0.770565139 | I22: =I21+(D22-D21)*(I21-I19)/(D21-D19) -> 2.003165858 | J22: =36500*(LN(H21)-LN(H22))/(D22-D21) -> 3.475648024 | K22: 1.011111111
A23: Swap | B23: 14Y | C23: 2012-11-16 | D23: =AddYears(D3,14) -> 2026-11-16 | F23: 5113 | G23: 14.20277778 | H23: =EXP(-(I23/100)*(F23/365)) -> 0.7425015887 | I23: =I21+(D23-D21)*(I21-I19)/(D21-D19) -> 2.125396989 | J23: =36500*(LN(H22)-LN(H23))/(D23-D22) -> 3.720110286 | K23: 1.011111111
A24: Swap | B24: 15Y | C24: 2012-11-16 | D24: =AddYears(D3,15) -> 2027-11-16 | E24: 1.993 | F24: 5478 | G24: 15.21666667 | H24: =(H8-E24/100*(H23*K23+H22*K22+H21*K21+H20*K20+H19*K19+H18*K18+H17*K17+H16*K16+H15*K15+H14*K14+H13*K13+H12*K12+H11*K11+H10*K10+H9*G9))/(1+E24/100*K24) -> 0.7262787001 | I24: =-100*LN(H24)/(F24/365) -> 2.130975365 | K24: 1.013888889
A25: Swap | B25: 16Y | C25: 2012-11-16 | D25: =AddYears(D3,16) -> 2028-11-16 | F25: 5844 | G25: 16.23333333 | H25: =EXP(-(I25/100)*(F25/365)) -> 0.7014572863 | I25: =I24+(D25-D24)*(I24-I21)/(D24-D21) -> 2.21470352 | J25: =36500*(LN(H24)-LN(H25))/(D25-D24) -> 3.467880658 | K25: 1.016666667
A26: Swap | B26: 17Y | C26: 2012-11-16 | D26: =AddYears(D3,17) -> 2029-11-16 | F26: 6209 | G26: 17.24722222 | H26: =EXP(-(I26/100)*(F26/365)) -> 0.6764164432 | I26: =I24+(D26-D24)*(I24-I21)/(D24-D21) -> 2.298202909 | J26: =36500*(LN(H25)-LN(H26))/(D26-D25) -> 3.635108202 | K26: 1.013888889
A27: Swap | B27: 18Y | C27: 2012-11-16 | D27: =AddYears(D3,18) -> 2030-11-18 | F27: 6576 | G27: 18.26666667 | H27: =EXP(-(I27/100)*(F27/365)) -> 0.6510424984 | I27: =I24+(D27-D24)*(I24-I21)/(D24-D21) -> 2.38215983 | J27: =36500*(LN(H26)-LN(H27))/(D27-D26) -> 3.802564512 | K27: 1.019444444
A28: Swap | B28: 19Y | C28: 2012-11-16 | D28: =AddYears(D3,19) -> 2031-11-17 | F28: 6940 | G28: 19.27777778 | H28: =EXP(-(I28/100)*(F28/365)) -> 0.6257717967 | I28: =I24+(D28-D24)*(I24-I21)/(D24-D21) -> 2.465430454 | J28: =36500*(LN(H27)-LN(H28))/(D28-D27) -> 3.969792056 | K28: 1.011111111
A29: Swap | B29: 20Y | C29: 2012-11-16 | D29: =AddYears(D3,20) -> 2032-11-16 | E29: 2.132 | F29: 7305 | G29: 20.29166667 | H29: =(H13-E29/100*(H28*K28+H27*K27+H26*K26+H25*K25+H24*K24+H23*K23+H22*K22+H21*K21+H20*K20+H19*K19+H18*K18+H17*K17+H16*K16+H15*K15+H14*K14+H13*K13+H12*K12+H11*K11+H10*K10+H9*G9))/(1+E29/100*K29) -> 0.6151504037 | I29: =-100*LN(H29)/(F29/365) -> 2.427779549 | K29: 1.013888889 | L29: T | M29: =(POWER(K25,2)*(K25+K26)*K26+(K25+K26+K27)*K27+(K25+K26+K27+K28)*K28)/(K25+K26+K27+K28+K29) -> 1.841082753
A30: Swap | B30: 21Y | C30: 2012-11-16 | D30: =AddYears(D3,21) -> 2033-11-16 | F30: 7670 | G30: 21.30555556 | H30: =EXP(-(I30/100)*(F30/365)) -> 0.5929610708 | I30: =I29+(D30-D29)*(I29-I24)/(D29-D24) -> 2.487075404 | J30: =36500*(LN(H29)-LN(H30))/(D30-D29) -> 3.673804776 | K30: 1.013888889
A31: Swap | B31: 22Y | C31: 2012-11-16 | D31: =AddYears(D3,22) -> 2034-11-16 | F31: 8035 | G31: 22.31944444 | H31: 0.5708947027 | I31: =I29+(D31-D29)*(I29-I24)/(D29-D24) -> 2.546371259 | J31: 3.792396486 | K31: 1.013888889
A32: Swap | B32: 23Y | C32: 2012-11-16 | D32: =AddYears(D3,23) -> 2035-11-16 | F32: 8400 | G32: 23.33333333 | H32: 0.5489980569 | I32: =I29+(D32-D29)*(I29-I24)/(D29-D24) -> 2.605667114 | J32: 3.910988196 | K32: 1.013888889
A33: Swap | B33: 24Y | C33: 2012-11-16 | D33: =AddYears(D3,24) -> 2036-11-17 | F33: 8767 | G33: 24.35277778 | H33: 0.5271973925 | I33: =I29+(D33-D29)*(I29-I24)/(D29-D24) -> 2.665287878 | J33: 4.029904815 | K33: 1.019444444
A34: Swap | B34: 25Y | C34: 2012-11-16 | D34: =AddYears(D3,25) -> 2037-11-16 | F34: 9131 | G34: 25.36388889 | H34: 0.505830741 | I34: =I29+(D34-D29)*(I29-I24)/(D29-D24) -> 2.724421278 | J34: 4.148658979 | K34: 1.011111111
A35: Swap | B35: 26Y | C35: 2012-11-16 | D35: =AddYears(D3,26) -> 2038-11-16 | F35: 9496 | G35: 26.37777778 | H35: 0.4847005255 | I35: =I29+(D35-D29)*(I29-I24)/(D29-D24) -> 2.783717133 | J35: 4.267088235 | K35: 1.013888889
A36: Swap | B36: 27Y | C36: 2012-11-16 | D36: =AddYears(D3,27) -> 2039-11-16 | F36: 9861 | G36: 27.39166667 | H36: 0.4639025124 | I36: =I29+(D36-D29)*(I29-I24)/(D29-D24) -> 2.843012988 | J36: 4.385679945 | K36: 1.013888889
A37: Swap | B37: 28Y | C37: 2012-11-16 | D37: =AddYears(D3,28) -> 2040-11-16 | F37: 10227 | G37: 28.40833333 | H37: 0.4434152444 | I37: =I29+(D37-D29)*(I29-I24)/(D29-D24) -> 2.902471298 | J37: 4.504434109 | K37: 1.016666667
A38: Swap | B38: 29Y | C38: 2012-11-16 | D38: =AddYears(D3,29) -> 2041-11-18 | F38: 10594 | G38: 29.42777778 | H38: 0.4232733561 | I38: =I29+(D38-D29)*(I29-I24)/(D29-D24) -> 2.962092061 | J38: 4.623513182 | K38: 1.019444444
A39: Swap | B39: 30Y | C39: 2012-11-16 | D39: =AddYears(D3,30) -> 2042-11-17 | E39: 2.188 | F39: 10958 | G39: 30.43888889 | H39: =(H23-E39/100*(H38*K38+H37*K37+H36*K36+H35*K35+H34*K34+H33*K33+H32*K32+H31*K31+H30*K30+H29*K29+H28*K28+H27*K27+H26*K26+H25*K25+H24*K24+H23*K23+H22*K22+H21*K21+H20*K20+H19*K19+H18*K18+H17*K17+H16*K16+H15*K15+H14*K14+H13*K13+H12*K12+H11*K11+H10*K10+H9*G9))/(1+E39/100*K39) -> 0.2627140382 | K39: 1.011111111 | L39: T | M39: =(POWER(K35,2)+(K35+K36)*K36+(K35+K36+K37)*K37+(K35+K36+K37+K38)*K38)/(K35+K36+K37+K38+K39) -> 2.033892842
I41: 1708245

Sheet EUR_6M
A1: Instrument | B1: Tenor | C1: Stamp | D1: Maturity | E1: Mkt.Values | F1: Discount | G1: Forward 3M | H1: Type | J1: days | K1: t (Act/360) | L1: T(365) | M1: discount Factor | N1: ZERO | O1: Forward rate | P1: y
A2: M. Mkt. | B2: O/N | C2: 2012-11-14 | D2: =AddDays(C2,1) -> 2012-11-15 | E2: 0.01429 | F2: 0.9999996031 | G2: 0.1016195991 | H2: LIBOR O/N FIX* | J2: =D2-C2 -> 1 | K2: =J2/360 -> 0.002777777778 | L2: =J2/365 -> 0.002739726027 | M2: =1/(1+E2/100*K2) -> 0.9999996031 | N2: =-100*LN(M2)/(J2/365) -> 0.01448846935 | O2: =N2 -> 0.01448846935
A3: M. Mkt. | B3: T/N | C3: 2012-11-15 | D3: =AddDays(C3,1) -> 2012-11-16 | E3: 0.01429 | F3: 0.9999992061 | G3: 0.1019771201 | H3: LIBOR O/N FIX* | J3: 1 | K3: =J3/360 -> 0.002777777778 | L3: =J3/365 -> 0.002739726027 | M3: =M2/(1+E3/100*K3) -> 0.9999992061 | N3: =-100*LN(M3)/((D3-$C$2)/365) -> 0.01448846935 | O3: =36500*(LN(M2)-LN(M3))/(D3-D2) -> 0.01448846935
A4: M. Mkt. | B4: 1W | C4: 2012-11-16 | D4: =AddDays(D3,7) -> 2012-11-23 | E4: 0.078 | F4: 0.9999840397 | G4: 0.1028130962 | H4: EURIBOR 1W FIX | J4: 7 | K4: =J4/360 -> 0.01944444444 | L4: =J4/365 -> 0.01917808219 | M4: =M3/(1+E4/100*K4) -> 0.9999840397 | N4: 0.06472845267 | O4: 0.07908273362
A5: M. Mkt. | B5: 1M | C5: 2012-11-16 | D5: =AddMonths(D3,1) -> 2012-12-17 | E5: 0.108 | F5: 0.9999062148 | G5: 0.0953152888 | H5: EURIBOR 1M FIX | J5: 31 | K5: 0.08611111111 | L5: 0.08493150685 | M5: =M3/(1+E5/100*K5) -> 0.9999062148 | N5: 0.1037369426 | O5: 0.1183651263
A6: M. Mkt. | B6: 1X2 | C6: 2012-11-16 | D6: =AddMonths(D3,2) -> 2013-01-16 | E6: 0.144 | F6: 0.9998145652 | G6: 0.0841947522 | H6: OTC FRA vs 1M EURIBOR | J6: 61 | K6: 0.1694444444 | L6: 0.1671232877 | M6: =M3/(1+E6/100*K6) -> 0.9997552658 | N6: 0.141807787 | O6: 0.183685716
A7: M. Mkt. | B7: 2X3 | C7: 2012-11-16 | D7: =AddMonths(D3,3) -> 2013-02-18 | E7: 0.191 | F7: 0.9997330036 | G7: 0.0800952418 | H7: OTC FRA vs 1M EURIBOR | J7: 94 | K7: 0.2611111111 | L7: 0.2575342466 | M7: =M3/(1+E7/100*K7) -> 0.9995007329 | N7: 0.1898729203 | O7: 0.2816336292
A8: Fra | B8: 3X4 | C8: 2012-11-16 | D8: =AddMonths(D3,4) -> 2013-03-18 | E8: 0.244747 | F8: 0.9996653596 | G8: 0.0763343528 | H8: OTC FRA vs 1M EURIBOR | J8: 122 | K8: 0.3388888889 | L8: 0.3342465753 | M8: =M3/(1+E8/100*K8) -> 0.9991704737 | N8: 0.2442763968 | O8: 0.4308026018
A9: Fra | B9: 4X5 | C9: 2012-11-16 | D9: =AddMonths(D3,5) -> 2013-04-16 | E9: 0.300414 | F9: 0.9996041616 | G9: 0.0766313189 | H9: OTC FRA vs 1M EURIBOR | J9: 151 | K9: 0.4194444444 | L9: 0.4136986301 | M9: =M3/(1+E9/100*K9) -> 0.9987407231 | N9: 0.300605054 | O9: 0.5414586229
A10: Fra | B10: 5X6 | C10: 2012-11-16 | D10: =AddMonths(D3,6) -> 2013-05-16 | E10: 0.358 | F10: 0.9995391916 | G10: 0.0773203048 | H10: OTC FRA vs 1M EURIBOR | J10: 181 | K10: 0.5027777778 | L10: 0.495890411 | M10: =M3/(1+E10/100*K10) -> 0.9982024971 | N10: 0.358840949 | O10: 0.6558440134
A11: Fra | B11: 6X7 | C11: 2012-11-16 | D11: =AddMonths(D3,7) -> 2013-06-17 | E11: 0.354106 | F11: 0.9994725601 | G11: 0.0808398046 | H11: OTC FRA vs 1M EURIBOR | J11: 213 | K11: 0.5916666667 | L11: 0.5835616438 | M11: =M3/(1+E11/100*K11) -> 0.997908461 | N11: 0.3554470735 | O11: 0.3360383483
A12: Fra | B12: 7X8 | C12: 2012-11-16 | D12: =AddMonths(D3,8) -> 2013-07-16 | E12: 0.350578 | F12: 0.9994105688 | G12: 0.0846256619 | H12: OTC FRA vs 1M EURIBOR | J12: 242 | K12: 0.6722222222 | L12: 0.6630136986 | M12: =M3/(1+E12/100*K12) -> 0.9976480856 | N12: 0.3522376457 | O12: 0.3284436114
A13: Fra | B13: 8X9 | C13: 2012-11-16 | D13: =AddMonths(D3,9) -> 2013-08-16 | E13: 0.346806 | F13: 0.9993417253 | G13: 0.0907179686 | H13: OTC FRA vs 1M EURIBOR | J13: 273 | K13: 0.7583333333 | L13: 0.7479452055 | M13: =M3/(1+E13/100*K13) -> 0.9973761612 | N13: 0.3487126559 | O13: 0.3209675753
A14: Fra | B14: 9X10 | C14: 2012-11-16 | D14: =AddMonths(D3,10) -> 2013-09-16 | E14: 0.343034 | F14: 0.9992685844 | G14: 0.1065463003 | H14: OTC FRA vs 1M EURIBOR | J14: 304 | K14: 0.8444444444 | L14: 0.8328767123 | M14: =M3/(1+E14/100*K14) -> 0.9971108437 | N14: 0.3451203826 | O14: 0.313253442
A15: Fra | B15: 10X11 | C15: 2012-11-16 | D15: =AddMonths(D3,11) -> 2013-10-16 | E15: 0.339383 | F15: 0.9991944775 | G15: 0.1245640399 | H15: OTC FRA vs 1M EURIBOR | J15: 334 | K15: 0.9277777778 | L15: 0.9150684932 | M15: =M3/(1+E15/100*K15) -> 0.9968603719 | N15: 0.3415973196 | O15: 0.3056620773
A16: Swap | B16: 1Y | C16: 2012-11-16 | D16: =AddYears(D3,1) -> 2013-11-18 | E16: 0.34 | F16: 0.9991050626 | G16: 0.1436548585 | H16: IRS vs 1M EURIBOR | J16: 367 | K16: 1.019444444 | L16: 1.005479452 | M16: =(100*$M$3)/(100+E16) -> 0.9966107296 | N16: 0.3358224497 | O16: 0.2770237735 | P16: =+K16 -> 1.019444444
A17: Swap | B17: 2Y | C17: 2012-11-16 | D17: =AddYears(D3,2) -> 2014-11-17 | E17: 0.389 | F17: 0.9973202706 | G17: 0.3643899043 | H17: IRS vs 1M EURIBOR | J17: 731 | K17: 2.030555556 | L17: 2.002739726 | M17: =(100*$M$3-E17*M16)/(100+E17) -> 0.9922624893 | N17: 0.3867904781 | O17: 0.4384586168 | P17: =K17-K16 -> 1.011111111
A18: Swap | B18: 3Y | C18: 2012-11-16 | D18: =AddYears(D3,3) -> 2015-11-16 | E18: 0.495 | F18: 0.9928845956 | G18: 0.7449215277 | H18: IRS vs 1M EURIBOR | J18: 1095 | K18: 3.041666667 | L18: 3 | M18: =(100*$M$3-E18*(M17+M16))/(100+E18) -> 0.9852771617 | N18: 0.4935084456 | O18: 0.7084102867 | P18: 1.011111111
A19: Swap | B19: 4Y | C19: 2012-11-16 | D19: =AddYears(D3,4) -> 2016-11-16 | E19: 0.655 | F19: 0.9842241874 | G19: 1.205903012 | H19: IRS vs 1M EURIBOR | J19: 1461 | K19: 4.058333333 | L19: 4.002739726 | M19: =(100*$M$3-E19*(M18+M17+M16))/(100+E19) -> 0.9741379178 | N19: 0.6537163977 | O19: 1.133902527 | P19: 1.016666667
A20: Swap | B20: 5Y | C20: 2012-11-16 | D20: =AddYears(D3,5) -> 2017-11-16 | E20: 0.847 | F20: 0.9708764966 | G20: 1.63857225 | H20: IRS vs 1M EURIBOR | J20: 1826 | K20: 5.072222222 | L20: 5.002739726 | M20: =(100*$M$3-E20*(M19+M18+M17+M16))/(100+E20) -> 0.958439224 | N20: 0.847589221 | O20: 1.624673989 | P20: 1.013888889
A21: Swap | B21: 6Y | C21: 2012-11-16 | D21: =AddYears(D3,6) -> 2018-11-16 | E21: 1.043 | F21: 0.9534647937 | G21: 1.970254241 | H21: IRS vs 1M EURIBOR | J21: 2191 | K21: 6.086111111 | L21: 6.002739726 | M21: =(100*$M$3-E21*(M20+M19+M18+M17+M16))/(100+E21) -> 0.9390279763 | N21: 1.047065772 | O21: 2.046088063 | P21: 1.013888889
A22: Swap | B22: 7Y | C22: 2012-11-16 | D22: =AddYears(D3,7) -> 2019-11-18 | E22: 1.226 | F22: 0.9332086452 | G22: 2.23069241 | H22: IRS vs 1M EURIBOR | J22: 2558 | K22: 7.105555556 | L22: 7.008219178 | M22: =(100*$M$3-E22*(M21+M20+M19+M18+M17+M16))/(100+E22) -> 0.91708676 | N22: 1.234059273 | O22: 2.351434604 | P22: 1.019444444
A23: Swap | B23: 8Y | C23: 2012-11-16 | D23: =AddYears(D3,8) -> 2020-11-16 | E23: 1.39 | F23: 0.9112701751 | G23: 2.418408207 | H23: IRS vs 1M EURIBOR | J23: 2922 | K23: 8.116666667 | L23: 8.005479452 | M23: =(100*$M$3-E23*(M22+M21+M20+M19+M18+M17+M16))/(100+E23) -> 0.8935750061 | N23: 1.404638356 | O23: 2.604315428 | P23: 1.011111111
A24: Swap | B24: 9Y | C24: 2012-11-16 | D24: =AddYears(D3,9) -> 2021-11-16 | E24: 1.533 | F24: 0.8882312578 | G24: 2.576562941 | H24: IRS vs 1M EURIBOR | J24: 3287 | K24: 9.130555556 | L24: 9.005479452 | M24: =(100*$M$3-E24*(M23+M22+M21+M20+M19+M18+M17+M16))/(100+E24) -> 0.869299961 | N24: 1.554407641 | O24: 2.754203223 | P24: 1.013888889
A25: Swap | B25: 10Y | C25: 2012-11-16 | D25: =AddYears(D3,10) -> 2022-11-16 | E25: 1.66 | F25: 0.8645022476 | G25: 2.683780394 | H25: IRS vs 1M EURIBOR | J25: 3652 | K25: 10.14444444 | L25: 10.00547945 | M25: =(100*$M$3-E25*(M24+M23+M22+M21+M20+M19+M18+M17+M16))/(100+E25) -> 0.8444543578 | N25: 1.688795171 | O25: 2.899755687 | P25: 1.013888889
A26: Swap | B26: 11Y | C26: 2012-11-16 | D26: =AddYears(D3,11) -> 2023-11-16 | E26: 1.768199 | J26: 4017 | K26: 11.15833333 | L26: 11.00547945 | M26: =(100*$M$3-E26*(M25+M24+M23+M22+M21+M20+M19+M18+M17+M16))/(100+E26) -> 0.819819879 | N26: 1.804299011 | O26: 2.960603206 | P26: 1.013888889
A27: Swap | B27: 12Y | C27: 2012-11-16 | D27: =AddYears(D3,12) -> 2024-11-18 | E27: 1.877 | F27: 0.8151523038 | G27: 2.711010139 | H27: IRS vs 1M EURIBOR | J27: 4385 | K27: 12.18055556 | L27: 12.01369863 | M27: =(100*$M$3-E27*(M26+M25+M24+M23+M22+M21+M20+M19+M18+M17+M16))/(100+E27) -> 0.7938328242 | N27: 1.920949895 | O27: 3.194917015 | P27: 1.022222222
A28: Swap | B28: 13Y | C28: 2012-11-16 | D28: =AddYears(D3,13) -> 2025-11-17 | E28: 1.948933 | J28: 4749 | K28: 13.19166667 | L28: 13.0109589 | M28: =(100*$M$3-E28*(M27+M26+M25+M24+M23+M22+M21+M20+M19+M18+M17+M16))/(100+E28) -> 0.7709073619 | N28: 1.998911366 | O28: 2.93851844 | P28: 1.011111111
A29: Swap | B29: 14Y | C29: 2012-11-16 | D29: =AddYears(D3,14) -> 2026-11-16 | E29: 2.020866 | J29: 5113 | K29: 14.20277778 | L29: 14.00821918 | M29: =(100*$M$3-E29*(M28+M27+M26+M25+M24+M23+M22+M21+M20+M19+M18+M17+M16))/(100+E29) -> 0.7473489108 | N29: 2.078131747 | O29: 3.112131831 | P29: 1.011111111
A30: Swap | B30: 15Y | C30: 2012-11-16 | D30: =AddYears(D3,15) -> 2027-11-16 | E30: 2.093 | F30: 0.7457555836 | G30: 2.390655386 | H30: IRS vs 1M EURIBOR | J30: 5478 | K30: 15.21666667 | L30: 15.00821918 | M30: =(100*$M$3-E30*(M29+M28+M27+M26+M25+M24+M23+M22+M21+M20+M19+M18+M17+M16))/(100+E30) -> 0.7231942053 | N30: 2.158545276 | O30: 3.285436236 | P30: 1.013888889
A31: Swap | B31: 16Y | C31: 2012-11-16 | D31: =AddYears(D3,16) -> 2028-11-16 | E31: 2.118 | J31: 5844 | K31: 16.23333333 | L31: 16.0109589 | M31: =(100*$M$3-E31*(M30+M29+M28+M27+M26+M25+M24+M23+M22+M21+M20+M19+M18+M17+M16))/(100+E31) -> 0.7049568995 | N31: 2.182873656 | O31: 2.54713465 | P31: 1.016666667
A32: Swap | B32: 17Y | C32: 2012-11-16 | D32: =AddYears(D3,17) -> 2029-11-16 | E32: 2.143 | J32: 6209 | K32: 17.24722222 | L32: 17.0109589 | M32: =(100*$M$3-E32*(M31+M30+M29+M28+M27+M26+M25+M24+M23+M22+M21+M20+M19+M18+M17+M16))/(100+E32) -> 0.6867571361 | N32: 2.20830326 | O32: 2.615594936 | P32: 1.013888889
A33: Swap | B33: 18Y | C33: 2012-11-16 | D33: =AddYears(D3,18) -> 2030-11-18 | E33: 2.168139 | J33: 6576 | K33: 18.26666667 | L33: 18.01643836 | M33: =(100*$M$3-E33*(M32+M31+M30+M29+M28+M27+M26+M25+M24+M23+M22+M21+M20+M19+M18+M17+M16))/(100+E33) -> 0.6685866827 | N33: 2.233886691 | O33: 2.666853154 | P33: 1.019444444
A34: Swap | B34: 19Y | C34: 2012-11-16 | D34: =AddYears(D3,19) -> 2031-11-17 | E34: 2.193069 | J34: 6940 | K34: 19.27777778 | L34: 19.01369863 | M34: =(100*$M$3-E34*(M33+M32+M31+M30+M29+M28+M27+M26+M25+M24+M23+M22+M21+M20+M19+M18+M17+M16))/(100+E34) -> 0.6505098587 | N34: 2.260869654 | O34: 2.748490333 | P34: 1.011111111
A35: Swap | B35: 20Y | C35: 2012-11-16 | D35: =AddYears(D3,20) -> 2032-11-16 | E35: 2.218 | F35: 0.6560466623 | G35: 2.217218599 | H35: IRS vs 1M EURIBOR | J35: 7305 | K35: 20.29166667 | L35: 20.01369863 | M35: =(100*$M$3-E35*(M34+M33+M32+M31+M30+M29+M28+M27+M26+M25+M24+M23+M22+M21+M20+M19+M18+M17+M16))/(100+E35) -> 0.63250781 | N35: 2.288119466 | O35: 2.8063885 | P35: 1.013888889
A36: Swap | B36: 21Y | C36: 2012-11-16 | D36: =AddYears(D3,21) -> 2033-11-16 | E36: 2.2236 | J36: 7670 | K36: 21.30555556 | L36: 21.01369863 | M36: =(100*$M$3-E36*(M35+M34+M33+M32+M31+M30+M29+M28+M27+M26+M25+M24+M23+M22+M21+M20+M19+M18+M17+M16))/(100+E36) -> 0.617841642 | N36: 2.290875005 | O36: 2.34603864 | P36: 1.013888889
A37: Swap | B37: 22Y | C37: 2012-11-16 | D37: =AddYears(D3,22) -> 2034-11-16 | E37: 2.2292 | J37: 8035 | K37: 22.31944444 | L37: 22.01369863 | M37: =(100*$M$3-E37*(M36+M35+M34+M33+M32+M31+M30+M29+M28+M27+M26+M25+M24+M23+M22+M21+M20+M19+M18+M17+M16))/(100+E37) -> 0.6034275938 | N37: 2.294042134 | O37: 2.360612581 | P37: 1.013888889
A38: Swap | B38: 23Y | C38: 2012-11-16 | D38: =AddYears(D3,23) -> 2035-11-16 | E38: 2.2348 | J38: 8400 | K38: 23.33333333 | L38: 23.01369863 | M38: =(100*$M$3-E38*(M37+M36+M35+M34+M33+M32+M31+M30+M29+M28+M27+M26+M25+M24+M23+M22+M21+M20+M19+M18+M17+M16))/(100+E38) -> 0.5892625226 | N38: 2.297577627 | O38: 2.375426277 | P38: 1.013888889
A39: Swap | B39: 24Y | C39: 2012-11-16 | D39: =AddYears(D3,24) -> 2036-11-17 | E39: 2.240416 | J39: 8767 | K39: 24.35277778 | L39: 24.01917808 | M39: =(100*$M$3-E39*(M38+M37+M36+M35+M34+M33+M32+M31+M30+M29+M28+M27+M26+M25+M24+M23+M22+M21+M20+M19+M18+M17+M16))/(100+E39) -> 0.5753403341 | N39: 2.300942385 | O39: 2.377974239 | P39: 1.019444444
A40: Swap | B40: 25Y | C40: 2012-11-16 | D40: =AddYears(D3,25) -> 2037-11-16 | E40: 2.246 | J40: 9131 | K40: 25.36388889 | L40: 25.01643836 | M40: =(100*$M$3-E40*(M39+M38+M37+M36+M35+M34+M33+M32+M31+M30+M29+M28+M27+M26+M25+M24+M23+M22+M21+M20+M19+M18+M17+M16))/(100+E40) -> 0.5616668786 | N40: 2.305364249 | O40: 2.41188987 | P40: 1.011111111
A41: Swap | B41: 26Y | C41: 2012-11-16 | D41: =AddYears(D3,26) -> 2038-11-16 | E41: 2.247799 | J41: 9496 | K41: 26.37777778 | L41: 26.01643836 | M41: =(100*$M$3-E41*(M40+M39+M38+M37+M36+M35+M34+M33+M32+M31+M30+M29+M28+M27+M26+M25+M24+M23+M22+M21+M20+M19+M18+M17+M16))/(100+E41) -> 0.5489759084 | N41: 2.304598475 | O41: 2.285437359 | P41: 1.013888889
A42: Swap | B42: 27Y | C42: 2012-11-16 | D42: =AddYears(D3,27) -> 2039-11-16 | E42: 2.249598 | J42: 9861 | K42: 27.39166667 | L42: 27.01643836 | M42: =(100*$M$3-E42*(M41+M40+M39+M38+M37+M36+M35+M34+M33+M32+M31+M30+M29+M28+M27+M26+M25+M24+M23+M22+M21+M20+M19+M18+M17+M16))/(100+E42) -> 0.5365448353 | N42: 2.304074622 | O42: 2.290442942 | P42: 1.013888889
A43: Swap | B43: 28Y | C43: 2012-11-16 | D43: =AddYears(D3,28) -> 2040-11-16 | E43: 2.251397 | J43: 10227 | K43: 28.40833333 | L43: 28.01917808 | M43: =(100*$M$3-E43*(M42+M41+M40+M39+M38+M37+M36+M35+M34+M33+M32+M31+M30+M29+M28+M27+M26+M25+M24+M23+M22+M21+M20+M19+M18+M17+M16))/(100+E43) -> 0.5243685928 | N43: 2.303544369 | O43: 2.289255085 | P43: 1.016666667
A44: Swap | B44: 29Y | C44: 2012-11-16 | D44: =AddYears(D3,29) -> 2041-11-18 | E44: 2.253206 | J44: 10594 | K44: 29.42777778 | L44: 29.02465753 | M44: =(100*$M$3-E44*(M43+M42+M41+M40+M39+M38+M37+M36+M35+M34+M33+M32+M31+M30+M29+M28+M27+M26+M25+M24+M23+M22+M21+M20+M19+M18+M17+M16))/(100+E44) -> 0.5124400921 | N44: 2.303025537 | O44: 2.288564676 | P44: 1.019444444
A45: Swap | B45: 30Y | C45: 2012-11-16 | D45: =AddYears(D3,30) -> 2042-11-17 | E45: 2.255 | J45: 10958 | K45: 30.43888889 | L45: 30.02191781 | M45: =(100*$M$3-E45*(M44+M43+M42+M41+M40+M39+M38+M37+M36+M35+M34+M33+M32+M31+M30+M29+M28+M27+M26+M25+M24+M23+M22+M21+M20+M19+M18+M17+M16))/(100+E45) -> 0.5007597654 | N45: 2.30332585 | O45: 2.312067916 | P45: 1.011111111

Sheet 6M DF
A1: t | B1: Stamp | C1: Maturity | D1: Zero rate | E1: Disc factor
A2: 0.25 | B2: 2012-11-16 | C2: =+B2+92 -> 2013-02-16 | D2: 0.1898729203 | E2: =1/(1+(D2/100)*A2) -> 0.9995255429
A3: =A2+0.25 -> 0.5 | B3: =C2 -> 2013-02-16 | C3: =+B3+89 -> 2013-05-16 | D3: 0.358840949 | E3: =1/(1+(D3/100)*A3) -> 0.9982090087
A4: =A3+0.25 -> 0.75 | B4: =C3 -> 2013-05-16 | C4: =AddMonths(B4,3) -> 2013-08-16 | D4: 0.3487126559 | E4: 0.9973914773
A5: 1 | B5: 2013-08-16 | C5: =AddMonths(B5,3) -> 2013-11-18 | D5: 0.3358224497 | E5: 0.9966530154
A6: 1.25 | B6: 2013-11-18 | C6: =AddMonths(B6,3) -> 2014-02-18 | D6: =$H$19*A6^4+A6^3*$H$20+$H$21*A6^2+$H$22*A6+$H$23 -> 0.3327732258 | E6: =EXP((-D6/100)*A6) -> 0.9958489741
A7: 1.5 | B7: 2014-02-18 | C7: 2014-05-19 | D7: =$H$19*A7^4+A7^3*$H$20+$H$21*A7^2+$H$22*A7+$H$23 -> 0.3531718 | E7: =EXP((-D7/100)*A7) -> 0.9947164304
A8: 1.75 | B8: 2014-05-19 | C8: 2014-08-19 | D8: =$H$19*A8^4+A8^3*$H$20+$H$21*A8^2+$H$22*A8+$H$23 -> 0.3763824789 | E8: 0.9934349513
A9: 2 | B9: 2014-08-19 | C9: =AddYears(B2,2) -> 2014-11-17 | D9: 0.3867904781 | E9: 0.9922940348
A10: 2.25 | B10: 2014-11-17 | C10: 2015-02-17 | D10: =($H$19*A10^4+A10^3*$H$20+$H$21*A10^2+$H$22*A10+$H$23)+0 -> 0.430463882 | E10: 0.9903613154
A11: 2.5 | B11: 2015-02-17 | C11: 2015-05-18 | D11: =($H$19*A11^4+A11^3*$H$20+$H$21*A11^2+$H$22*A11+$H$23)+0 -> 0.460958425 | E11: 0.9885421859
A12: 2.75 | B12: 2015-05-18 | C12: 2015-08-18 | D12: =($H$19*A12^4+A12^3*$H$20+$H$21*A12^2+$H$22*A12+$H$23)+0 -> 0.4935127102 | E12: 0.9865200794
A13: 3 | B13: 2015-08-18 | C13: =AddYears(B2,3) -> 2015-11-16 | D13: 0.4935084456 | E13: 0.9853038055
A14: 3.25 | B14: 2015-11-16 | C14: 2016-02-16 | D14: =($H$19*A14^4+A14^3*$H$20+$H$21*A14^2+$H$22*A14+$H$23)+0 -> 0.5641007383 | E14: 0.9818337582
A15: 3.5 | B15: 2016-02-16 | C15: 2016-05-16 | D15: =($H$19*A15^4+A15^3*$H$20+$H$21*A15^2+$H$22*A15+$H$23)+0 -> 0.60179655 | E15: 0.979157394
A16: 3.75 | B16: 2016-05-16 | C16: 2016-08-16 | D16: =($H$19*A16^4+A16^3*$H$20+$H$21*A16^2+$H$22*A16+$H$23)+0 -> 0.6408762414 | E16: 0.9762536305
A17: 4 | B17: 2016-08-16 | C17: =AddYears(B2,4) -> 2016-11-16 | D17: 0.6537163977 | E17: 0.9741902597
A18: 4.25 | B18: 2016-11-16 | C18: 2017-02-16 | D18: =($H$19*A18^4+A18^3*$H$20+$H$21*A18^2+$H$22*A18+$H$23)+0 -> 0.7225639945 | E18: 0.9697577608
A19: 4.5 | B19: 2017-02-16 | C19: 2017-05-16 | D19: =($H$19*A19^4+A19^3*$H$20+$H$21*A19^2+$H$22*A19+$H$23)+0 -> 0.764872375 | E19: 0.9661663478 | H19: 5.1e-05
A20: 4.75 | B20: 2017-05-16 | C20: 2017-08-16 | D20: =($H$19*A20^4+A20^3*$H$20+$H$21*A20^2+$H$22*A20+$H$23)+0 -> 0.8079652727 | E20: 0.9623487669 | H20: -0.0024143
A21: 5 | B21: 2017-08-16 | C21: =AddYears(B2,5) -> 2017-11-16 | D21: 0.847589221 | E21: 0.9585059959 | H21: 0.0326695
A22: 5.25 | B22: 2017-11-16 | C22: 2018-02-16 | D22: =($H$19*A22^4+A22^3*$H$20+$H$21*A22^2+$H$22*A22+$H$23)+0 -> 0.8959578508 | E22: 0.954051346 | H22: 0.0049498
A23: 5.5 | B23: 2018-02-16 | C23: 2018-05-16 | D23: =($H$19*A23^4+A23^3*$H$20+$H$21*A23^2+$H$22*A23+$H$23)+0 -> 0.9405961 | E23: 0.9495825752 | H23: 0.2801308
A24: 5.75 | B24: 2018-05-16 | C24: 2018-08-16 | D24: =($H$19*A24^4+A24^3*$H$20+$H$21*A24^2+$H$22*A24+$H$23)+0 -> 0.9854960039 | E24: 0.9449095974
A25: 6 | B25: 2018-08-16 | C25: =AddYears(B2,6) -> 2018-11-16 | D25: 1.047065772 | E25: 0.9391087927
A26: 6.25 | B26: 2018-11-16 | C26: 2019-02-18 | D26: =($H$19*A26^4+A26^3*$H$20+$H$21*A26^2+$H$22*A26+$H$23)+0 -> 1.075610507 | E26: 0.9349841921
A27: 6.5 | B27: 2019-02-18 | C27: 2019-05-20 | D27: =($H$19*A27^4+A27^3*$H$20+$H$21*A27^2+$H$22*A27+$H$23)+0 -> 1.120601925 | E27: 0.9297503915
A28: 6.75 | B28: 2019-05-20 | C28: 2019-08-20 | D28: =($H$19*A28^4+A28^3*$H$20+$H$21*A28^2+$H$22*A28+$H$23)+0 -> 1.165408635 | E28: 0.9243494531
A29: 7 | B29: 2019-08-20 | C29: =AddYears(B2,7) -> 2019-11-18 | D29: 1.234059273 | E29: 0.9172418059
A30: 7.25 | B30: 2019-11-18 | C30: 2020-02-18 | D30: =($H$19*A30^4+A30^3*$H$20+$H$21*A30^2+$H$22*A30+$H$23)+0 -> 1.254074163 | E30: 0.9130904112
A31: 7.5 | B31: 2020-02-18 | C31: 2020-05-18 | D31: =($H$19*A31^4+A31^3*$H$20+$H$21*A31^2+$H$22*A31+$H$23)+0 -> 1.29774805 | E31: 0.9072555607
A32: 7.75 | B32: 2020-05-18 | C32: 2020-08-18 | D32: =($H$19*A32^4+A32^3*$H$20+$H$21*A32^2+$H$22*A32+$H$23)+0 -> 1.340867366 | E32: 0.9012999031
A33: 8 | B33: 2020-08-18 | C33: =AddYears(B2,8) -> 2020-11-16 | D33: 1.404638356 | E33: 0.8937125674
A34: 8.25 | B34: 2020-11-16 | C34: 2021-02-16 | D34: =($H$19*A34^4+A34^3*$H$20+$H$21*A34^2+$H$22*A34+$H$23)+0 -> 1.42512502 | E34: 0.8890757721
A35: 8.5 | B35: 2021-02-16 | C35: 2021-05-17 | D35: =($H$19*A35^4+A35^3*$H$20+$H$21*A35^2+$H$22*A35+$H$23)+0 -> 1.466116675 | E35: 0.8828323881
A36: 8.75 | B36: 2021-05-17 | C36: 2021-08-17 | D36: =($H$19*A36^4+A36^3*$H$20+$H$21*A36^2+$H$22*A36+$H$23)+0 -> 1.506260398 | E36: 0.8765182225
A37: 9 | B37: 2021-08-17 | C37: =AddYears(B2,9) -> 2021-11-16 | D37: 1.554407641 | E37: 0.8694480555
A38: 9.25 | B38: 2021-11-16 | C38: 2022-02-16 | D38: =($H$19*A38^4+A38^3*$H$20+$H$21*A38^2+$H$22*A38+$H$23)+0 -> 1.583763276 | E38: 0.8637273708
A39: 9.5 | B39: 2022-02-16 | C39: 2022-05-16 | D39: =($H$19*A39^4+A39^3*$H$20+$H$21*A39^2+$H$22*A39+$H$23)+0 -> 1.621014 | E39: 0.8572751672
A40: 9.75 | B40: 2022-05-16 | C40: 2022-08-16 | D40: =($H$19*A40^4+A40^3*$H$20+$H$21*A40^2+$H$22*A40+$H$23)+0 -> 1.657199929 | E40: 0.8508010232
A41: 10 | B41: 2022-08-16 | C41: =AddYears(B2,10) -> 2022-11-16 | D41: 1.688795171 | E41: 0.8446106584
A42: 10.25 | B42: 2022-11-16 | C42: 2023-02-16 | D42: =($H$19*A42^4+A42^3*$H$20+$H$21*A42^2+$H$22*A42+$H$23)+0 -> 1.726213132 | E42: 0.8378326953
A43: 10.5 | B43: 2023-02-16 | C43: 2023-05-16 | D43: =($H$19*A43^4+A43^3*$H$20+$H$21*A43^2+$H$22*A43+$H$23)+0 -> 1.758970225 | E43: 0.8313604085
A44: 10.75 | B44: 2023-05-16 | C44: 2023-08-16 | D44: =($H$19*A44^4+A44^3*$H$20+$H$21*A44^2+$H$22*A44+$H$23)+0 -> 1.79052216 | E44: 0.8249098823
A45: 11 | B45: 2023-08-16 | C45: =AddYears(B2,11) -> 2023-11-16 | D45: 1.804299011 | E45: 0.8199819991
A46: 11.25 | B46: 2023-11-16 | C46: 2024-02-16 | D46: =($H$19*A46^4+A46^3*$H$20+$H$21*A46^2+$H$22*A46+$H$23)+0 -> 1.849922788 | E46: 0.8121125714
A47: 11.5 | B47: 2024-02-16 | C47: 2024-05-16 | D47: =($H$19*A47^4+A47^3*$H$20+$H$21*A47^2+$H$22*A47+$H$23)+0 -> 1.87773955 | E47: 0.8057836086
A48: 11.75 | B48: 2024-05-16 | C48: 2024-08-16 | D48: =($H$19*A48^4+A48^3*$H$20+$H$21*A48^2+$H$22*A48+$H$23)+0 -> 1.904287291 | E48: 0.7995119846
A49: 12 | B49: 2024-08-16 | C49: =AddYears(B2,12) -> 2024-11-18 | D49: 1.920949895 | E49: 0.7941253272
A50: 12.25 | B50: 2024-11-18 | C50: =AddMonths(B50,3) -> 2025-02-18 | D50: =($H$19*A50^4+A50^3*$H$20+$H$21*A50^2+$H$22*A50+$H$23)+0 -> 1.953564445 | E50: 0.7871695271
A51: 12.5 | B51: 2025-02-18 | C51: 2025-05-19 | D51: =($H$19*A51^4+A51^3*$H$20+$H$21*A51^2+$H$22*A51+$H$23)+0 -> 1.976300175 | E51: 0.7811113842
A52: 12.75 | B52: 2025-05-19 | C52: 2025-08-19 | D52: =($H$19*A52^4+A52^3*$H$20+$H$21*A52^2+$H$22*A52+$H$23)+0 -> 1.997779523 | E52: 0.7751359163
A53: 13 | B53: 2025-08-19 | C53: =AddYears(B2,13) -> 2025-11-17 | D53: 1.998911366 | E53: 0.7711607146
A54: 13.25 | B54: 2025-11-17 | C54: 2026-02-17 | D54: =($H$19*A54^4+A54^3*$H$20+$H$21*A54^2+$H$22*A54+$H$23)+0 -> 2.037034301 | E54: 0.7634504577
A55: 13.5 | B55: 2026-02-17 | C55: 2026-05-18 | D55: =($H$19*A55^4+A55^3*$H$20+$H$21*A55^2+$H$22*A55+$H$23)+0 -> 2.0548543 | E55: 0.7577472968
A56: 13.75 | B56: 2026-05-18 | C56: 2026-08-18 | D56: =($H$19*A56^4+A56^3*$H$20+$H$21*A56^2+$H$22*A56+$H$23)+0 -> 2.071507054 | E56: 0.7521404379
A57: 14 | B57: 2026-08-18 | C57: =AddYears(B2,14) -> 2026-11-16 | D57: 2.078131747 | E57: 0.7475616931
A58: 14.25 | B58: 2026-11-16 | C58: 2027-02-16 | D58: =($H$19*A58^4+A58^3*$H$20+$H$21*A58^2+$H$22*A58+$H$23)+0 -> 2.101452557 | E58: 0.7412206021
A59: 14.5 | B59: 2027-02-16 | C59: 2027-05-17 | D59: =($H$19*A59^4+A59^3*$H$20+$H$21*A59^2+$H$22*A59+$H$23)+0 -> 2.114828125 | E59: 0.7359080662
A60: 14.75 | B60: 2027-05-17 | C60: 2027-08-17 | D60: =($H$19*A60^4+A60^3*$H$20+$H$21*A60^2+$H$22*A60+$H$23)+0 -> 2.127202085 | E60: 0.7306926876
A61: 15 | B61: 2027-08-17 | C61: =AddYears(B2,15) -> 2027-11-16 | D61: 2.158545276 | E61: 0.723408079
A62: 15.25 | B62: 2027-11-16 | C62: 2028-02-16 | D62: =($H$19*A62^4+A62^3*$H$20+$H$21*A62^2+$H$22*A62+$H$23)+0 -> 2.149163413 | E62: 0.7205449916
A63: 15.5 | B63: 2028-02-16 | C63: 2028-05-16 | D63: =($H$19*A63^4+A63^3*$H$20+$H$21*A63^2+$H$22*A63+$H$23)+0 -> 2.15887185 | E63: 0.7156062906
A64: 15.75 | B64: 2028-05-16 | C64: 2028-08-16 | D64: =($H$19*A64^4+A64^3*$H$20+$H$21*A64^2+$H$22*A64+$H$23)+0 -> 2.167820816 | E64: 0.7107519545
A65: 16 | B65: 2028-08-16 | C65: =AddYears(B2,16) -> 2028-11-16 | D65: 2.182873656 | E65: 0.7052099035
A66: 16.25 | B66: 2028-11-16 | C66: 2029-02-16 | D66: =($H$19*A66^4+A66^3*$H$20+$H$21*A66^2+$H$22*A66+$H$23)+0 -> 2.18373507 | E66: 0.7012737541
A67: 16.5 | B67: 2029-02-16 | C67: 2029-05-16 | D67: =($H$19*A67^4+A67^3*$H$20+$H$21*A67^2+$H$22*A67+$H$23)+0 -> 2.190859675 | E67: 0.6966362762
A68: =A67+0.25 -> 16.75 | B68: =C67 -> 2029-05-16 | C68: 2029-08-16 | D68: =($H$19*A68^4+A68^3*$H$20+$H$21*A68^2+$H$22*A68+$H$23)+0 -> 2.197543448 | E68: 0.692055913
A69: 17 | B69: 2029-08-16 | C69: =AddYears(B2,17) -> 2029-11-16 | D69: 2.20830326 | E69: 0.6870064802
A70: 17.25 | B70: 2029-11-16 | C70: =AddMonths(B70,3) -> 2030-02-18 | D70: =($H$19*A70^4+A70^3*$H$20+$H$21*A70^2+$H$22*A70+$H$23)+0 -> 2.209959726 | E70: 0.6830289371
A71: 17.5 | B71: 2030-02-18 | C71: 2030-05-20 | D71: =($H$19*A71^4+A71^3*$H$20+$H$21*A71^2+$H$22*A71+$H$23)+0 -> 2.2158898 | E71: =EXP((-D71/100)*A71) -> 0.6785611252
A72: 17.75 | B72: 2030-05-20 | C72: 2030-08-20 | D72: =($H$19*A72^4+A72^3*$H$20+$H$21*A72^2+$H$22*A72+$H$23)+0 -> 2.221774179 | E72: 0.674108018
A73: 18 | B73: 2030-08-20 | C73: =AddYears(B2,18) -> 2030-11-18 | D73: 2.233886691 | E73: 0.6689141156
A74: 18.25 | B74: 2030-11-18 | C74: 2031-02-18 | D74: =($H$19*A74^4+A74^3*$H$20+$H$21*A74^2+$H$22*A74+$H$23)+0 -> 2.233853582 | E74: 0.6651928511
A75: 18.5 | B75: 2031-02-18 | C75: 2031-05-19 | D75: =($H$19*A75^4+A75^3*$H$20+$H$21*A75^2+$H$22*A75+$H$23)+0 -> 2.240284425 | E75: 0.6607018376
A76: 18.75 | B76: 2031-05-19 | C76: 2031-08-19 | D76: =($H$19*A76^4+A76^3*$H$20+$H$21*A76^2+$H$22*A76+$H$23)+0 -> 2.24714121 | E76: 0.656167638
A77: 19 | B77: 2031-08-19 | C77: =AddYears(B2,19) -> 2031-11-17 | D77: 2.260869654 | E77: 0.6507919753
A78: 19.25 | B78: 2031-11-17 | C78: 2032-02-17 | D78: =($H$19*A78^4+A78^3*$H$20+$H$21*A78^2+$H$22*A78+$H$23)+0 -> 2.262656838 | E78: 0.6469013679
A79: 19.5 | B79: 2032-02-17 | C79: 2032-05-17 | D79: =($H$19*A79^4+A79^3*$H$20+$H$21*A79^2+$H$22*A79+$H$23)+0 -> 2.27158975 | E79: 0.6421328911
A80: 19.75 | B80: 2032-05-17 | C80: 2032-08-17 | D80: =($H$19*A80^4+A80^3*$H$20+$H$21*A80^2+$H$22*A80+$H$23)+0 -> 2.281496741 | E80: 0.6372484893
A81: 20 | B81: 2032-08-17 | C81: =AddYears(B2,20) -> 2032-11-16 | D81: 2.288119466 | E81: 0.6327854264

Sheet OIS DF
A1: Stamp | B1: Maturity | C1: Zero Rate | H1: t (act/360) | I1: Discount Factor | J1: y*df | K1: y
A2: 2012-11-16 | B2: =+A2+92 -> 2013-02-16 | C2: 0.04055551049 | H2: =(B2-$A$2)/360 -> 0.2555555556 | I2: =1/(1+C2/100*H2) -> 0.9998963689
A3: =B2 -> 2013-02-16 | B3: =+A3+89 -> 2013-05-16 | C3: 0.05559005264 | H3: =(B3-$A$2)/360 -> 0.5027777778 | I3: =1/(1+C3/100*H3) -> 0.9997205837
A4: =B3 -> 2013-05-16 | B4: =AddMonths(A4,3) -> 2013-08-16 | C4: 0.04859888566 | H4: 0.7583333333 | I4: =1/(1+C4/100*H4) -> 0.9996315942
A5: 2013-08-16 | B5: =AddMonths(A5,3) -> 2013-11-18 | C5: 0.04861086505 | H5: 1.019444444 | I5: =1/(1+C5/100*H5) -> 0.9995046847 | J5: =+K5*I5 -> 0.2609817788 | K5: =+H5-H4 -> 0.2611111111
A6: 2013-11-18 | B6: =AddMonths(A6,3) -> 2014-02-18 | H6: 1.275 | I6: =I5+(I7-I5)*(H6-H5)/(H7-H5) -> 0.9995377084 | J6: 0.2554374144 | K6: 0.2555555556
A7: 2014-02-18 | B7: 2014-05-19 | C7: 0.05771839511 | H7: 1.525 | I7: =I3-C7/100*SUM(J5-C7/100*K6*I5*(1-K6)*(K6+K7))/(1+C7/100*(K7+POWER(K6,2)/(K7+K6))) -> 0.9995700141 | J7: 0.2498925035 | K7: 0.25
A8: 2014-05-19 | B8: 2014-08-19 | H8: 1.780555556 | I8: =I7+(I9-I7)*K8 -> 0.9993801922 | J8: 0.2553971602 | K8: 0.2555555556
A9: 2014-08-19 | B9: =AddYears(A2,2) -> 2014-11-17 | C9: 0.08605339496 | H9: 2.030555556 | I9: =(I3-C9/100*SUM(J5:J7) - C9/100*I7*(K8+K7-(POWER(K7,2)+(K8+K7)*K8/(K9+K8+K7)))/(1+C9/100*(K9+(POWER(K7,2)+(K8+K7)*K8)/(K9+K8+K7)))) -> 0.9988272326 | J9: 0.2497068082 | K9: 0.25 | L9: T | M9: =POWER(K8,2)/K8 -> 0.2555555556
A10: 2014-11-17 | B10: 2015-02-17 | H10: 2.286111111 | I10: =I9+(I13-I9)*K10 -> 0.9910900044 | J10: 0.2532785567 | K10: 0.2555555556
A11: 2015-02-17 | B11: 2015-05-18 | H11: 2.536111111 | I11: =I9+(I13-I9)*(K11+K10) -> 0.9835209768 | J11: 0.2458802442 | K11: 0.25
A12: 2015-05-18 | B12: 2015-08-18 | H12: 2.791666667 | I12: =I9+(I13-I9)*(K12+K11+K10) -> 0.9757837486 | J12: 0.249366958 | K12: 0.2555555556
A13: 2015-08-18 | B13: =AddYears(A2,3) -> 2015-11-16 | C13: 0.1792600485 | H13: 3.041666667 | I13: =(I3-C13/100*SUM(J5:J9)-C13/100*I9*(K10+K11+K12)/(1+C13)*100*(K13+0)) -> 0.9685511222 | J13: 0.2421377805 | K13: 0.25 | M13: =(POWER(K10,2)+(K10+K11)*K11+(K10+K11+K12)*K12)/(K10+K11+K12+K13) -> 0.381959707
A14: 2015-11-16 | B14: 2016-02-16 | H14: 3.297222222 | I14: =I13+(I17-I13)/(K14+K15+K16+K17)*K14 -> 0.9447372196 | J14: 0.241432845 | K14: 0.2555555556 | M14: 0
A15: 2016-02-16 | B15: 2016-05-16 | H15: 3.547222222 | I15: =I13+(I17-I13)/(K17+K14+K15+K16)*(K14+K15) -> 0.9214410105 | J15: 0.2303602526 | K15: 0.25
A16: 2016-05-16 | B16: 2016-08-16 | H16: 3.802777778 | I16: =I13+(I17-I13)/(K14+K15+K16+K17)*(K14+K16+K15) -> 0.8976271078 | J16: 0.2293935942 | K16: 0.2555555556
A17: 2016-08-16 | B17: =AddYears(A2,4) -> 2016-11-16 | C17: 0.3377566508 | H17: 4.058333333 | I17: =(I3-C17/100*SUM(J5:J13)-C17/100*I13*(K14+K15+K16)/(1+C17)*100*(K17+M17)) -> 0.8738132052 | J17: 0.2233078191 | K17: 0.2555555556 | L17: T | M17: =(POWER(K14,2)+(K14+K15)*K15+(K14+K15+K16)*K16)/(K14+K15+K16+K17) -> 0.3798724954
A18: 2016-11-16 | B18: 2017-02-16 | H18: 4.313888889 | I18: =I17+(I21-I17)*K18 -> 0.8865533953 | J18: 0.2265636455 | K18: 0.2555555556
A19: 2017-02-16 | B19: 2017-05-16 | H19: 4.561111111 | I19: =I17+(I21-I17)*(K19+K18) -> 0.8988781443 | J19: 0.2222226523 | K19: 0.2472222222
A20: 2017-05-16 | B20: 2017-08-16 | H20: 4.816666667 | I20: =I17+(I21-I17)*(K20+K19+K18) -> 0.9116183344 | J20: 0.2329691299 | K20: 0.2555555556
A21: 2017-08-16 | B21: =AddYears(A2,5) -> 2017-11-16 | C21: 0.5348544021 | H21: 5.072222222 | I21: =(I3-C21/100*SUM(J5:J17)-C21/100*I17*(K18+K19+K20)/(1+C21)*100*(K21+M22)) -> 0.9236661228 | J21: 0.2360480092 | K21: 0.2555555556 | L21: T | M21: =(POWER(K18,2)+(K18+K19)*K19+(K18+K19+K20)*K20)/(K18+K19+K20+K21) -> 0.3781506849
A22: 2017-11-16 | B22: 2018-02-16 | H22: 5.327777778 | I22: =I21+(I25-I21)*K22 -> 0.916163084 | J22: 0.2341305659 | K22: 0.2555555556 | M22: 0
A23: 2018-02-16 | B23: 2018-05-16 | H23: 5.575 | I23: =I21+(I25-I21)*(K23+K22) -> 0.9089047095 | J23: 0.2247014421 | K23: 0.2472222222
A24: 2018-05-16 | B24: 2018-08-16 | H24: 5.830555556 | I24: =I21+(I25-I21)*(K24+K23+K22) -> 0.9014016707 | J24: 0.2303582047 | K24: 0.2555555556
A25: 2018-08-16 | B25: =AddYears(A2,6) -> 2018-11-16 | C25: 0.7291984182 | H25: 6.086111111 | I25: =(I3-C25/100*SUM(J5:J21)-C25/100*I21*(K22+K23+K24)/(1+C25)*100*(K25+M26)) -> 0.8943064057 | J25: 0.2285449704 | K25: 0.2555555556 | M25: =(POWER(K22,2)+(K22+K23)*K23+(K22+K23+K24)*K24)/(K22+K23+K24+K25) -> 0.3781506849
A26: 2018-11-16 | B26: 2019-02-18 | H26: 6.347222222 | I26: =I25+(I29-I25)/(K26+K27+K28+K29)*K26 -> 0.8880995024 | J26: 0.2318926479 | K26: 0.2611111111 | M26: 0
A27: 2019-02-18 | B27: 2019-05-20 | H27: 6.6 | I27: =I25+(I29-I25)/(K27+K28+K29+K26)*(K27+K26) -> 0.8820906918 | J27: 0.2229729249 | K27: 0.2527777778
A28: 2019-05-20 | B28: 2019-08-20 | H28: 6.855555556 | I28: =I25+(I29-I25)/(K28+K29+K26+K27)*(K28+K27+26) -> 0.2641736577 | J28: 0.06751104585 | K28: 0.2555555556
A29: 2019-08-20 | B29: =AddYears(A2,7) -> 2019-11-18 | C29: 0.9304843955 | H29: 7.105555556 | I29: =(I3-C29/100*SUM(J5:J25)-C29/100*I25*(K26+K27+K28)/(1+C29)*100*(K29+M30)) -> 0.8700730705 | J29: 0.2175182676 | K29: 0.25 | M29: =(POWER(K26,2)+(K26+K27)*K27+(K26+K27+K28)*K28)/(K26+K27+K28+K29) -> 0.3871858916
A30: 2019-11-18 | B30: 2020-02-18 | H30: 7.361111111 | I30: =I29+(I33-I29)*(K30) -> 0.8647160492 | J30: 0.2209829904 | K30: 0.2555555556
A31: 2020-02-18 | B31: 2020-05-18 | H31: 7.611111111 | I31: =I29+(I33-I29)*(K31+K32) -> 0.859475485 | J31: 0.2148688712 | K31: 0.25
A32: 2020-05-18 | B32: 2020-08-18 | H32: 7.866666667 | I32: =I29+(I33-I29)*(K32+K31+K29) -> 0.8542349208 | J32: 0.2183044797 | K32: 0.2555555556
A33: 2020-08-18 | B33: =AddYears(A2,8) -> 2020-11-16 | C33: 1.10534479 | H33: 8.116666667 | I33: =(I3-C33/100*SUM(J5:J29)-C33/100*I29*(K30+K31+K32)/(1+C33)*100*(K33+M34)) -> 0.8491108135 | J33: 0.2122777034 | K33: 0.25 | M33: =(POWER(K30,2)+(K30+K31)*K31+(K30+K31+K32)*K32)/(K30+K31+K32+K33) -> 0.381959707
A34: 2020-11-16 | B34: 2021-02-16 | H34: 8.372222222 | I34: =I33+(I37-I33)/(K34+K35+K36+K37)*(K34) -> 0.8084850364 | J34: 0.2066128426 | K34: 0.2555555556 | M34: 0
A35: 2021-02-16 | B35: 2021-05-17 | H35: 8.622222222 | I35: =I33+(I37-I33)/(K34+K35+K36+K37)*(K35+K34) -> 0.7687424284 | J35: 0.1921856071 | K35: 0.25
A36: 2021-05-17 | B36: 2021-08-17 | H36: 8.877777778 | I36: =I33+(I37-I33)/(K34+K35+K36+K37)*(K36+K35+K34) -> 0.7281166513 | J36: 0.1860742553 | K36: 0.2555555556
A37: 2021-08-17 | B37: =AddYears(A2,9) -> 2021-11-16 | C37: 1.259627846 | H37: 9.130555556 | I37: =(I3-C37/100*SUM(J5:J33)-C37/100*I33*(K34+K35+K36)/(1+C37)*100*(K37+M37)) -> 0.6879324588 | J37: =+K37*I37 -> 0.1738940382 | K37: 0.2527777778 | M37: =(POWER(K34,2)+(K34+K35)*K35+(K34+K35+K36)*K36)/(K34+K35+K36+K37) -> 0.380913242
A38: 2021-11-16 | B38: 2022-02-16 | H38: 9.386111111 | I38: =I37+(I41-I37)/(K41+K40+K38+K39)*(K38) -> 0.6955337943 | J38: 0.1777475252 | K38: 0.2555555556
A39: 2022-02-16 | B39: 2022-05-16 | H39: 9.633333333 | I39: =I37+(I41-I37)/(K38+K41+K39+K40)*(K39+38) -> 1.82557146 | J39: 0.4513218331 | K39: 0.2472222222
A40: 2022-05-16 | B40: 2022-08-16 | H40: 9.888888889 | I40: =I37+(I41-I37)/(K39+K38+K40+K41)*(K40+K38+K39) -> 0.7104885956 | J40: 0.1815693078 | K40: 0.2555555556
A41: 2022-08-16 | B41: =AddYears(A2,10) -> 2022-11-16 | C41: 1.39725571 | H41: 10.14444444 | I41: =(I3-C41/100*SUM(J9:J37)-C41/100*I37*(K38+K39+K40)/(1+C41)*100*(K41+M41)) -> 0.718089931 | J41: 0.1835118713 | K41: 0.2555555556 | M41: =(POWER(K38,2)+(K38+K39)*K39+(K38+K39+K40)*K40)/(K38+K39+K40+K41) -> 0.3781506849
A42: 2022-11-16 | B42: 2023-02-16 | H42: 10.4 | I42: =I41+(I45-I41)*(K42) -> 0.7358586429 | J42: 0.1880527643 | K42: 0.2555555556
A43: 2023-02-16 | B43: 2023-05-16 | H43: 10.64722222 | I43: =I41+(I45-I41)*(K43+K42) -> 0.7530479402 | J43: 0.1861701852 | K43: 0.2472222222
A44: 2023-05-16 | B44: 2023-08-16 | H44: 10.90277778 | I44: =I41+(I45-I41)*(K44+K43+K42) -> 0.7708166521 | J44: 0.1969864778 | K44: 0.2555555556
A45: 2023-08-16 | B45: =AddYears(A2,11) -> 2023-11-16 | C45: 1.527235811 | H45: 11.15833333 | I45: =(I3-C45/100*SUM(J5:J41)-C45/100*I41*(K42+K43+K44)/(1+C45)*100*(K45+M46)) -> 0.7876196731 | J45: 0.2012805831 | K45: 0.2555555556 | M45: =(POWER(K42,2)+(K42+K43)*K43+(K42+K43+K44)*K44)/(K42+K43+K44+K45) -> 0.3781506849
A46: 2023-11-16 | B46: 2024-02-16 | H46: 11.41388889 | I46: =I45+(I49-I45)/(K48+K49+K46+K47)*(K46) -> 0.7435097692 | J46: 0.1900080521 | K46: 0.2555555556 | M46: 0
A47: 2024-02-16 | B47: 2024-05-16 | H47: 11.66388889 | I47: =I45+(I49-I45)/(K49+K46+K47+K48)*(K47+K46) -> 0.7003587764 | J47: 0.1750896941 | K47: 0.25
A48: 2024-05-16 | B48: 2024-08-16 | H48: 11.91944444 | I48: =I45+(I49-I45)/(K46+K47+K48+K49)*(K48+K47+K46) -> 0.6562488725 | J48: 0.1677080452 | K48: 0.2555555556
A49: 2024-08-16 | B49: =AddYears(A2,12) -> 2024-11-18 | C49: 1.643324295 | H49: 12.18055556 | I49: =(I3-C49/100*SUM(J5:J45)-C49/100*I45*(K46+K47+K48)/(1+C49)*100*(K49+M49)) -> 0.6111800577 | J49: 0.159585904 | K49: 0.2611111111 | M49: =(POWER(K46,2)+(K46+K47)*K47+(K46+K47+K48)*K48)/(K46+K47+K48+K49) -> 0.377807971
A50: 2024-11-18 | B50: =AddMonths(A50,3) -> 2025-02-18 | H50: 12.43611111 | I50: =I49+(I53-I49)/(K53+K52+K50+K51)*(K50) -> 0.6161582171 | J50: 0.1574626555 | K50: 0.2555555556
A51: 2025-02-18 | B51: 2025-05-19 | H51: 12.68611111 | I51: =I49+(I53-I49)/(K50+K53+K51+K52)*(K51+K50) -> 0.6210281557 | J51: 0.1552570389 | K51: 0.25
A52: 2025-05-19 | B52: 2025-08-19 | H52: 12.94166667 | I52: =I49+(I53-I49)/(K50+K51+K52+K53)*(K52+K51+K50) -> 0.6260063151 | J52: 0.1599793916 | K52: 0.2555555556
A53: 2025-08-19 | B53: =AddYears(A2,13) -> 2025-11-17 | C53: 1.819378749 | H53: 13.19166667 | I53: =(I3-C53/100*SUM(J5:J49)-C53/100*I49*(K50+K51+K52)/(1+C53)*100*(K53+M53)) -> 0.6308762536 | J53: 0.1577190634 | K53: 0.25 | M53: =(POWER(K50,2)+(K50+K51)*K51+(K50+K51+K52)*K52)/(K50+K51+K52+K53) -> 0.381959707
A54: 2025-11-17 | B54: 2026-02-17 | H54: 13.44722222 | I54: =I53+(I57-I53)*(K54) -> 0.6542087218 | J54: 0.1671866733 | K54: 0.2555555556
A55: 2026-02-17 | B55: 2026-05-18 | H55: 13.69722222 | I55: =I53+(I57-I53)*(K55+K54) -> 0.6770339624 | J55: 0.1692584906 | K55: 0.25
A56: 2026-05-18 | B56: 2026-08-18 | H56: 13.95277778 | I56: =I53+(I57-I53)*(K56+K55+K54) -> 0.7003664305 | J56: 0.1789825322 | K56: 0.2555555556
A57: 2026-08-18 | B57: =AddYears(A2,14) -> 2026-11-16 | C57: 1.898646139 | H57: 14.20277778 | I57: =(I3-C57/100*SUM(J5:J53)-C57/100*I53*(K54+K55+K56)/(1+C57)*100*(K57+M58)) -> 0.722177216 | J57: 0.180544304 | K57: 0.25 | M57: =(POWER(K54,2)+(K54+K55)*K55+(K54+K55+K56)*K56)/(K54+K55+K56+K57) -> 0.381959707
A58: 2026-11-16 | B58: 2027-02-16 | H58: 14.45833333 | I58: =I57+(I61-I57)/(K60+K61+K58+K59)*(K58) -> 0.6799368648 | J58: 0.1737616432 | K58: 0.2555555556 | M58: 0
A59: 2027-02-16 | B59: 2027-05-17 | H59: 14.70833333 | I59: =I57+(I61-I57)/(K61+K58+K59+K60)*(K59+K58) -> 0.638614782 | J59: 0.1596536955 | K59: 0.25
A60: 2027-05-17 | B60: 2027-08-17 | H60: 14.96388889 | I60: =I57+(I61-I57)/(K58+K59+K60+K61)*(K60+K59+K58) -> 0.5963744308 | J60: 0.152406799 | K60: 0.2555555556
A61: 2027-08-17 | B61: =AddYears(A2,15) -> 2027-11-16 | C61: 1.93039996 | H61: 15.21666667 | I61: =(I3-C61/100*SUM(J5:J57)-C61/100*I57*(K58+K59+K60)/(1+C61)*100*(K61+M61)) -> 0.5545932138 | J61: 0.1401888402 | K61: 0.2527777778 | M61: =(POWER(K58,2)+(K58+K59)*K59+(K58+K59+K60)*K60)/(K58+K59+K60+K61) -> 0.380913242
A62: 2027-11-16 | B62: 2028-02-16 | H62: 15.47222222 | I62: =I61+(I65-I61)/(K64+K65+K62+K63)*(K62) -> 0.5636418406 | J62: 0.1440418037 | K62: 0.2555555556
A63: 2028-02-16 | B63: 2028-05-16 | H63: 15.72222222 | I63: =I61+(I65-I61)/(K65+K62+K63+K64)*(K63+K62) -> 0.5724937581 | J63: 0.1431234395 | K63: 0.25
A64: 2028-05-16 | B64: 2028-08-16 | H64: 15.97777778 | I64: =I61+(I65-I61)/(K62+K63+K64+K65)*(K64+K63+K62) -> 0.5815423848 | J64: 0.1486163872 | K64: 0.2555555556
A65: 2028-08-16 | B65: =AddYears(A2,16) -> 2028-11-16 | C65: 1.961830322 | H65: 16.23333333 | I65: =(I3-C65/100*SUM(J5:J61)-C65/100*I61*(K62+K63+K64)/(1+C65)*100*(K65+M65)) -> 0.5905910116 | J65: 0.1509288141 | K65: 0.2555555556 | M65: =(POWER(K62,2)+(K62+K63)*K63+(K62+K63+K64)*K64)/(K62+K63+K64+K65) -> 0.3798724954
A66: 2028-11-16 | B66: 2029-02-16 | H66: 16.48888889 | I66: =I65+(I69-I65)*(K66) -> 0.6125741132 | J66: 0.1565467178 | K66: 0.2555555556
A67: 2029-02-16 | B67: 2029-05-16 | H67: =(B67-$A$2)/360 -> 16.73611111 | I67: =I65+(I69-I65)*(K67+K66) -> 0.6338403745 | J67: 0.1566994259 | K67: 0.2472222222
A68: =B67 -> 2029-05-16 | B68: 2029-08-16 | H68: 16.99166667 | I68: =I65+(I69-I65)*(K68+K67+K65) -> 0.6558234761 | J68: 0.1675993328 | K68: 0.2555555556
A69: 2029-08-16 | B69: =AddYears(A2,17) -> 2029-11-16 | C69: 1.993402593 | H69: 17.24722222 | I69: =(I3-C69/100*SUM(J5:J65)-C69/100*I65*(K66+K67+K68)/(1+C69)*100*(K69+M70)) -> 0.6766118439 | J69: =+K69*I69 -> 0.1729119157 | K69: =+H69-H68 -> 0.2555555556 | M69: =(POWER(K66,2)+(K66+K67)*K67+(K66+K67+K68)*K68)/(K66+K67+K68+K69) -> 0.3781506849
A70: 2029-11-16 | B70: =AddMonths(A70,3) -> 2030-02-18 | H70: 17.50833333 | I70: =I69+(I73-I69)/(K72+K73+K70+K71)*(K70) -> 0.6348685632 | J70: 0.165771236 | K70: 0.2611111111 | M70: 0
A71: 2030-02-18 | B71: 2030-05-20 | H71: 17.76111111 | I71: =I69+(I73-I69)/(K73+K70+K71+K72)*(K71+K70) -> 0.594457515 | J71: 0.1502656496 | K71: 0.2527777778
A72: 2030-05-20 | B72: 2030-08-20 | H72: 18.01666667 | I72: =I69+(I73-I69)/(K70+K71+K72+K73)*(K72+K71+K70) -> 0.5536023892 | J72: 0.1414761661 | K72: 0.2555555556
A73: 2030-08-20 | B73: =AddYears(A2,18) -> 2030-11-18 | C73: 2.024861381 | H73: 18.26666667 | I73: =(I3-C73/100*SUM(J5:J69)-C73/100*I69*(K70+K71+K72)/(1+C73)*100*(K73+M73)) -> 0.5136354184 | J73: 0.1284088546 | K73: 0.25 | M73: =(POWER(K70,2)+(K70+K71)*K71+(K70+K71+K72)*K72)/(K70+K71+K72+K73) -> 0.3871858916
A74: 2030-11-18 | B74: 2031-02-18 | H74: 18.52222222 | I74: =I73+(I77-I73)*(K74) -> 0.5494384166 | J74: 0.1404120398 | K74: 0.2555555556
A75: 2031-02-18 | B75: 2031-05-19 | H75: 18.77222222 | I75: =I73+(I77-I73)*(K75+K74) -> 0.5844630887 | J75: 0.1461157722 | K75: 0.25
A76: 2031-05-19 | B76: 2031-08-19 | H76: 19.02777778 | I76: =I73+(I77-I73)*(K76+K75+K74) -> 0.6202660869 | J76: 0.1585124444 | K76: 0.2555555556
A77: 2031-08-19 | B77: =AddYears(A2,19) -> 2031-11-17 | C77: 2.056703806 | H77: 19.27777778 | I77: =(I3-C77/100*SUM(J5:J73)-C77/100*I73*(K74+K75+K76)/(1+C77)*100*(K77+M78)) -> 0.6537341069 | J77: 0.1634335267 | K77: 0.25 | M77: =(POWER(K74,2)+(K74+K75)*K75+(K74+K75+K76)*K76)/(K74+K75+K76+K77) -> 0.381959707
A78: 2031-11-17 | B78: 2032-02-17 | H78: 19.53333333 | I78: =I77+(I81-I77)/(K81+K80+K78+K79)*(K78) -> 0.6509195673 | J78: 0.1663461116 | K78: 0.2555555556 | M78: 0
A79: 2032-02-17 | B79: 2032-05-17 | H79: 19.78333333 | I79: =I77+(I81-I78)/(K78+K81+K79+K80)*(K79+K78) -> 0.6495696276 | J79: 0.1623924069 | K79: 0.25
A80: 2032-05-17 | B80: 2032-08-17 | H80: 20.03888889 | I80: =I77+(I81-I77)/(K78+K79+K80+K81)*(K80+K79+K78) -> 0.6453516737 | J80: 0.1649232055 | K80: 0.2555555556
A81: 2032-08-17 | B81: =AddYears(A2,20) -> 2032-11-16 | C81: 2.061157333 | H81: 20.29166667 | I81: =(I7-C81/100*SUM(J9:J77)-C81/100*I77*(K78+K79+K80)/(1+C81)*100*(K81+M82)) -> 0.6425677269 | J81: 0.1624268421 | K81: 0.2527777778 | M81: =(POWER(K78,2)+(K78+K79)*K79+(K78+K79+K80)*K80)/(K78+K79+K80+K81) -> 0.380913242

Sheet EONIA 6M DF
A1: EONIA | B1: 6M | C1: Maturity
A2: 0.08111102099 | B2: 0.01448846935 | C2: ='Final SHEET'!C2 -> 2013-02-15
A3: 0.04055551049 | B3: 0.01448846935 | C3: ='Final SHEET'!C3 -> 2013-05-17
A4: 0.07367540041 | B4: 0.06472845267 | C4: ='Final SHEET'!C4 -> 2013-08-16
A5: 0.07865057154 | B5: 0.1037369426 | C5: ='Final SHEET'!C5 -> 2013-11-18
A6: 0.07785516811 | B6: 0.141807787 | C6: ='Final SHEET'!C6 -> 2014-02-17
A7: 0.07132477404 | B7: 0.1898729203 | C7: ='Final SHEET'!C7 -> 2014-05-19
A8: 0.06548681055 | B8: 0.2442763968 | C8: ='Final SHEET'!C8 -> 2014-08-18
A9: 0.05956032445 | B9: 0.300605054 | C9: ='Final SHEET'!C9 -> 2014-11-17
A10: 0.05559005264 | B10: 0.358840949 | C10: ='Final SHEET'!C10 -> 2015-02-16
A11: 0.05260101017 | B11: 0.3554470735 | C11: ='Final SHEET'!C11 -> 2015-05-18
A12: 0.05060289067 | B12: 0.3522376457 | C12: ='Final SHEET'!C12 -> 2015-08-17
A13: 0.04859888566 | B13: 0.3487126559 | C13: ='Final SHEET'!C13 -> 2015-11-16
A14: 0.04759699827 | B14: 0.3451203826 | C14: ='Final SHEET'!C14 -> 2016-02-15
A15: 0.04760020735 | B15: 0.3415973196 | C15: ='Final SHEET'!C15 -> 2016-05-16
A16: 0.04861086505 | B16: 0.3358224497 | C16: ='Final SHEET'!C16 -> 2016-08-15
A17: 0.05771839511 | B17: 0.3867904781 | C17: ='Final SHEET'!C17 -> 2016-11-16
A18: 0.08605339496 | B18: 0.4935084456 | C18: ='Final SHEET'!C18 -> 2017-02-15
A19: 0.1792600485 | B19: 0.6537163977 | C19: ='Final SHEET'!C19 -> 2017-05-17
A20: 0.3377566508 | B20: 0.847589221 | C20: ='Final SHEET'!C20 -> 2017-08-16
A21: 0.5348544021 | B21: 1.047065772 | C21: ='Final SHEET'!C21 -> 2017-11-16
A22: 0.7291984182 | B22: 1.234059273 | C22: ='Final SHEET'!C22 -> 2018-02-15
A23: 0.9304843955 | B23: 1.404638356 | C23: ='Final SHEET'!C23 -> 2018-05-17
A24: 1.10534479 | B24: 1.554407641 | C24: ='Final SHEET'!C24 -> 2018-08-16
A25: 1.259627846 | B25: 1.688795171 | C25: ='Final SHEET'!C25 -> 2018-11-16
A26: 1.39725571 | B26: 1.804299011 | C26: ='Final SHEET'!C26 -> 2019-02-15
A27: 1.527235811 | B27: 1.920949895 | C27: ='Final SHEET'!C27 -> 2019-05-17
A28: 1.643324295 | B28: 1.998911366 | C28: ='Final SHEET'!C28 -> 2019-08-16
A29: 1.734926852 | B29: 2.078131747 | C29: ='Final SHEET'!C29 -> 2019-11-18
A30: 1.819378749 | B30: 2.158545276 | C30: ='Final SHEET'!C30 -> 2020-02-17
A31: 1.898646139 | B31: 2.182873656 | C31: ='Final SHEET'!C31 -> 2020-05-18
A32: 1.93039996 | B32: 2.20830326 | C32: ='Final SHEET'!C32 -> 2020-08-17
A33: 1.961830322 | B33: 2.233886691 | C33: ='Final SHEET'!C33 -> 2020-11-16
A34: 1.993402593 | B34: 2.260869654 | C34: ='Final SHEET'!C34 -> 2021-02-15
A35: 2.024861381 | B35: 2.288119466 | C35: ='Final SHEET'!C35 -> 2021-05-17
A36: 2.056703806 | B36: 2.290875005 | C36: ='Final SHEET'!C36 -> 2021-08-16
A37: 2.061157333 | B37: 2.294042134 | C37: ='Final SHEET'!C37 -> 2021-11-16
A38: 2.067352499 | B38: 2.297577627 | C38: ='Final SHEET'!C38 -> 2022-02-15
A39: 2.075154585 | B39: 2.300942385 | C39: ='Final SHEET'!C39 -> 2022-05-17
A40: 2.084512354 | B40: 2.305364249 | C40: ='Final SHEET'!C40 -> 2022-08-16
A41: 2.095209422 | B41: 2.304598475 | C41: ='Final SHEET'!C41 -> 2022-11-16
A42: 2.094647537 | B42: 2.304074622 | C42: ='Final SHEET'!C42 -> 2023-02-15
A43: 2.095763316 | B43: 2.303544369 | C43: ='Final SHEET'!C43 -> 2023-05-17
A44: 2.098455068 | B44: 2.303025537 | C44: ='Final SHEET'!C44 -> 2023-08-16
A45: 2.102643236 | B45: 2.30332585 | C45: ='Final SHEET'!C45 -> 2023-11-16
A46: 2.108195491 | C46: ='Final SHEET'!C46 -> 2024-02-15
C47: ='Final SHEET'!C47 -> 2024-05-16
C48: ='Final SHEET'!C48 -> 2024-08-15
C49: ='Final SHEET'!C49 -> 2024-11-18
C50: ='Final SHEET'!C50 -> 2025-02-17
C51: ='Final SHEET'!C51 -> 2025-05-19
C52: ='Final SHEET'!C52 -> 2025-08-18
C53: ='Final SHEET'!C53 -> 2025-11-17
C54: ='Final SHEET'!C54 -> 2026-02-16
C55: ='Final SHEET'!C55 -> 2026-05-18
C56: ='Final SHEET'!C56 -> 2026-08-17
C57: ='Final SHEET'!C57 -> 2026-11-16
C58: ='Final SHEET'!C58 -> 2027-02-15
C59: ='Final SHEET'!C59 -> 2027-05-17
C60: ='Final SHEET'!C60 -> 2027-08-16
C61: ='Final SHEET'!C61 -> 2027-11-16
C62: ='Final SHEET'!C62 -> 2028-02-15
C63: ='Final SHEET'!C63 -> 2028-05-16
C64: ='Final SHEET'!C64 -> 2028-08-15
C65: ='Final SHEET'!C65 -> 2028-11-16
C66: ='Final SHEET'!C66 -> 2029-02-15
C67: ='Final SHEET'!C67 -> 2029-05-17
C68: ='Final SHEET'!C68 -> 2029-08-16
C69: ='Final SHEET'!C69 -> 2029-11-16
C70: ='Final SHEET'!C70 -> 2030-02-15
C71: ='Final SHEET'!C71 -> 2030-05-17
C72: ='Final SHEET'!C72 -> 2030-08-16
C73: ='Final SHEET'!C73 -> 2030-11-18
C74: ='Final SHEET'!C74 -> 2031-02-17
C75: ='Final SHEET'!C75 -> 2031-05-19
C76: ='Final SHEET'!C76 -> 2031-08-18
C77: ='Final SHEET'!C77 -> 2031-11-17
C78: ='Final SHEET'!C78 -> 2032-02-16
C79: ='Final SHEET'!C79 -> 2032-05-17
C80: ='Final SHEET'!C80 -> 2032-08-16
C81: ='Final SHEET'!C81 -> 2032-11-16

Sheet Final SHEET
A1: Tenor | B1: Stamp | C1: Maturity | D1: Zero rate (3 M) | E1: t | F1: Forward Rate (3 M) | G1: OIS DF | H1: 6M DF | I1: P*R OIS | J1: P*R 6M | L1: Par Rate without collateral greement | N1: Par Rate with collateral agreement | T1: 2012-11-16 | U1: =AddDays(T1,91) -> 2013-02-15 | V1: 0.1940669023 | W1: 0.25 | X1: 0.1940669023
A2: T/N | B2: 2012-11-16 | C2: =AddDays(B2,91) -> 2013-02-15 | D2: 0.1940669023 | E2: =((C2-$B$2)/30)/12 -> 0.2527777778 | F2: =D2 -> 0.1940669023 | G2: ='OIS DF'!I2 -> 0.9998963689 | H2: ='6M DF'!E2 -> 0.9995255429 | I2: =G2*F2 -> 0.1940467909 | J2: =H2*F2 -> 0.1939748258 | L2: =(SUM(I2:I81))/G82 -> 2.742339861 | N2: =SUM(J2:J81)/H82 -> 2.790576368 | T2: =U1 -> 2013-02-15 | U2: =AddDays(T2,91) -> 2013-05-17 | V2: 0.1626670679 | W2: =W1+0.25 -> 0.5 | X2: 0.1626670679
A3: 1W | B3: =C2 -> 2013-02-15 | C3: =AddDays(B3,91) -> 2013-05-17 | D3: 0.1626670679 | E3: =((C3-$B$2)/30)/12 -> 0.5055555556 | F3: =((1+D3)^E3/(1+D2)^E2)^(1/(E3-E2))-1 -> 0.1320929407 | G3: ='OIS DF'!I3 -> 0.9997205837 | H3: ='6M DF'!E3 -> 0.9982090087 | I3: =G3*F3 -> 0.1320560318 | J3: =H3*F3 -> 0.1318563634 | T3: =U2 -> 2013-05-17 | U3: 2013-08-16 | V3: 0.1626670679 | W3: =W2+0.25 -> 0.75 | X3: 0.1626670679
A4: 1M | B4: =C3 -> 2013-05-17 | C4: 2013-08-16 | D4: 0.1626670679 | E4: 0.7583333333 | F4: =((1+D4)^E4/(1+D3)^E3)^(1/(E4-E3))-1 -> 0.1626670679 | G4: ='OIS DF'!I4 -> 0.9996315942 | H4: ='6M DF'!E4 -> 0.9973914773 | I4: 0.1626071404 | J4: 0.1622427472 | T4: 2013-08-16 | U4: =AddYears(T1,1) -> 2013-11-18 | V4: 0.1829361356 | W4: 1 | X4: 0.1829361356
A5: 1X2 | B5: 2013-08-16 | C5: =AddYears(B2,1) -> 2013-11-18 | D5: 0.1829361356 | E5: 1.019444444 | F5: 0.2438282816 | G5: ='OIS DF'!I5 -> 0.9995046847 | H5: ='6M DF'!E5 -> 0.9966530154 | I5: 0.2437075098 | J5: 0.2430121922 | T5: 2013-11-18 | U5: =AddDays(T5,91) -> 2014-02-17 | W5: 1.25 | X5: =W5^4*$L$47+W5^3*$L$48+W5^2*$L$49+W5*$L$50+$L$51 -> 0.2030976625
A6: 2X3 | B6: 2013-11-18 | C6: 2014-02-17 | D6: =D5+(C6-C5)*(D5-D4)/(C5-C4) -> 0.2025583182 | E6: 1.272222222 | F6: 0.28505313 | G6: ='OIS DF'!I6 -> 0.9995377084 | H6: ='6M DF'!E6 -> 0.9958489741 | I6: 0.2849213523 | J6: 0.2838698671 | T6: 2014-02-17 | U6: 2014-05-19 | W6: 1.5 | X6: =W6^4*$L$47+W6^3*$L$48+W6^2*$L$49+W6*$L$50+$L$51 -> 0.223772175
A7: 5X6 | B7: 2014-02-17 | C7: 2014-05-19 | D7: =D6+(C7-C6)*(D6-D5)/(C6-C5) -> 0.2221805008 | E7: 1.525 | F7: 0.3259071161 | G7: ='OIS DF'!I7 -> 0.9995700141 | H7: ='6M DF'!E7 -> 0.9947164304 | I7: 0.3257669806 | J7: 0.3241851631 | T7: 2014-05-19 | U7: 2014-08-18 | W7: 1.75 | X7: 0.2474870375
A8: 8X9 | B8: 2014-05-19 | C8: 2014-08-18 | D8: 0.2418026833 | E8: 1.777777778 | F8: 0.3670490444 | G8: ='OIS DF'!I8 -> 0.9993801922 | H8: ='6M DF'!E8 -> 0.9934349513 | I8: 0.3668215445 | J8: 0.3646393496 | T8: 2014-08-18 | U8: =AddYears(T1,2) -> 2014-11-17 | V8: 0.2368753975 | W8: 2 | X8: 0.2368753975
A9: 1Y | B9: 2014-08-18 | C9: =AddYears(B2,2) -> 2014-11-17 | D9: 0.2368753975 | E9: 2.030555556 | F9: 0.2027698388 | G9: ='OIS DF'!I9 -> 0.9988272326 | H9: ='6M DF'!E9 -> 0.9922940348 | I9: 0.2025320369 | J9: 0.2012073015 | T9: 2014-11-17 | U9: =AddDays(T9,91) -> 2015-02-16 | W9: 2.25 | X9: 0.3032084625
A10: 2Y | B10: 2014-11-17 | C10: 2015-02-16 | D10: =D9+(C10-C9)*(D9-D5)/(C9-C5) -> 0.250360213 | E10: 2.283333333 | F10: 0.364155729 | G10: ='OIS DF'!I10 -> 0.9910900044 | H10: ='6M DF'!E10 -> 0.9903613154 | I10: 0.3609111031 | J10: 0.3606457468 | T10: 2015-02-16 | U10: 2015-05-18 | W10: 2.5 | X10: 0.334813475
A11: 3Y | B11: 2015-02-16 | C11: 2015-05-18 | D11: =D9+(C11-C9)*(D9-D5)/(C9-C5) -> 0.2638450284 | E11: 2.536111111 | F11: 0.3924368715 | G11: ='OIS DF'!I11 -> 0.9835209768 | H11: ='6M DF'!E11 -> 0.9885421859 | I11: 0.3859698952 | J11: 0.3879404028 | T11: 2015-05-18 | U11: 2015-08-17 | W11: 2.75 | X11: 0.3686557375
A12: 4Y | B12: 2015-05-18 | C12: 2015-08-17 | D12: =D9+(C12-C9)*(D9-D5)/(C9-C5) -> 0.2773298439 | E12: 2.788888889 | F12: 0.420847151 | G12: ='OIS DF'!I12 -> 0.9757837486 | H12: ='6M DF'!E12 -> 0.9865200794 | I12: 0.4106558106 | J12: 0.4151741648 | T12: 2015-08-17 | U12: =AddYears(T1,3) -> 2015-11-16 | V12: 0.3798381053 | W12: 3 | X12: 0.3798381053
A13: 5Y | B13: 2015-08-17 | C13: =AddYears(B2,3) -> 2015-11-16 | D13: 0.3798381053 | E13: 3.041666667 | F13: 2.23377039 | G13: ='OIS DF'!I13 -> 0.9685511222 | H13: ='6M DF'!E13 -> 0.9853038055 | I13: 2.163520818 | J13: 2.200942466 | T13: 2015-11-16 | U13: =AddDays(T13,91) -> 2016-02-15 | W13: 3.25 | X13: 0.4423066625
A14: 6Y | B14: 2015-11-16 | C14: 2016-02-15 | D14: =D13+(C14-C13)*(D13-D9)/(C13-C9) -> 0.4155787822 | E14: 3.294444444 | F14: 0.9256222584 | G14: ='OIS DF'!I14 -> 0.9447372196 | H14: ='6M DF'!E14 -> 0.9818337582 | I14: 0.8744697988 | J14: 0.9088071807 | T14: 2016-02-15 | U14: 2016-05-16 | W14: 3.5 | X14: 0.481755775
A15: 7Y | B15: 2016-02-15 | C15: 2016-05-16 | D15: =D13+(C15-C13)*(D13-D9)/(C13-C9) -> 0.4513194592 | E15: 3.547222222 | F15: 1.008614886 | G15: ='OIS DF'!I15 -> 0.9214410105 | H15: ='6M DF'!E15 -> 0.979157394 | I15: 0.9293791197 | J15: 0.9875927232 | T15: 2016-05-16 | U15: 2016-08-15 | W15: 3.75 | X15: 0.5227230375
A16: 8Y | B16: 2016-05-16 | C16: 2016-08-15 | D16: =D13+(C16-C13)*(D13-D9)/(C13-C9) -> 0.4870601361 | E16: 3.8 | F16: 1.092155841 | G16: ='OIS DF'!I16 -> 0.8976271078 | H16: ='6M DF'!E16 -> 0.9762536305 | I16: 0.9803486889 | J16: 1.066221105 | T16: 2016-08-15 | U16: =AddYears(T1,4) -> 2016-11-16 | V16: 0.5483223797 | W16: 4 | X16: 0.5483223797
A17: 9Y | B17: 2016-08-15 | C17: =AddYears(B2,4) -> 2016-11-16 | D17: 0.5483223797 | E17: 4.058333333 | F17: 1.803910198 | G17: ='OIS DF'!I17 -> 0.8738132052 | H17: ='6M DF'!E17 -> 0.9741902597 | I17: 1.576280552 | J17: 1.757351745 | T17: 2016-11-16 | U17: =AddDays(T17,91) -> 2017-02-15 | W17: 4.25 | X17: 0.6085506625
A18: 10Y | B18: 2016-11-16 | C18: 2017-02-15 | D18: =D17+(C18-C17)*(D17-D13)/(C17-C13) -> 0.5902132785 | E18: 4.311111111 | F18: 1.441159507 | G18: ='OIS DF'!I18 -> 0.8865533953 | H18: ='6M DF'!E18 -> 0.9697577608 | I18: 1.277664854 | J18: 1.397575617 | T18: 2017-02-15 | U18: 2017-05-17 | W18: 4.5 | X18: 0.653093475
A19: 11Y | B19: 2017-02-15 | C19: 2017-05-17 | D19: =D17+(C19-C17)*(D17-D13)/(C17-C13) -> 0.6321041773 | E19: 4.563888889 | F19: 1.542967776 | G19: ='OIS DF'!I19 -> 0.8988781443 | H19: ='6M DF'!E19 -> 0.9661663478 | I19: 1.386940011 | J19: 1.490763541 | T19: 2017-05-17 | U19: 2017-08-16 | W19: 4.75 | X19: 0.6985193375
A20: 12Y | B20: 2017-05-17 | C20: 2017-08-16 | D20: =D17+(C20-C17)*(D17-D13)/(C17-C13) -> 0.6739950761 | E20: 4.816666667 | F20: 1.645284066 | G20: ='OIS DF'!I20 -> 0.9116183344 | H20: ='6M DF'!E20 -> 0.9623487669 | I20: 1.49987112 | J20: 1.583337092 | T20: 2017-08-16 | U20: =AddYears(T1,5) -> 2017-11-16 | V20: 0.7494442853 | W20: 5 | X20: 0.7494442853
A21: 13Y | B21: 2017-08-16 | C21: =AddYears(B2,5) -> 2017-11-16 | D21: 0.7494442853 | E21: 5.072222222 | F21: 3.015683345 | G21: ='OIS DF'!I21 -> 0.9236661228 | H21: ='6M DF'!E21 -> 0.9585059959 | I21: 2.785484543 | J21: 2.890550568 | T21: 2017-11-16 | U21: =AddDays(T21,91) -> 2018-02-15 | W21: 5.25 | X21: 0.7914428625
A22: 14Y | B22: 2017-11-16 | C22: 2018-02-15 | D22: =D21+(C22-C21)*(D21-D17)/(C21-C17) -> 0.7995870069 | E22: 5.325 | F22: 2.172756171 | G22: ='OIS DF'!I22 -> 0.916163084 | H22: ='6M DF'!E22 -> 0.954051346 | I22: 1.990598994 | J22: 2.072920949 | T22: 2018-02-15 | U22: 2018-05-17 | W22: 5.5 | X22: 0.838664975
A23: 15Y | B23: 2018-02-15 | C23: 2018-05-17 | D23: =D21+(C23-C21)*(D21-D17)/(C21-C17) -> 0.8497297286 | E23: 5.577777778 | F23: 2.30019201 | G23: ='OIS DF'!I23 -> 0.9089047095 | H23: ='6M DF'!E23 -> 0.9495825752 | I23: 2.09065535 | J23: 2.184222252 | T23: 2018-05-17 | U23: 2018-08-16 | W23: 5.75 | X23: 0.8862190375
A24: 16Y | B24: 2018-05-17 | C24: 2018-08-16 | D24: =D21+(C24-C21)*(D21-D17)/(C21-C17) -> 0.8998724503 | E24: 5.830555556 | F24: 2.428041384 | G24: ='OIS DF'!I24 -> 0.9014016707 | H24: ='6M DF'!E24 -> 0.9449095974 | I24: 2.18864056 | J24: 2.294279606 | T24: 2018-08-16 | U24: =AddYears(T1,6) -> 2018-11-16 | V24: 0.9594809129 | W24: 6 | X24: 0.9594809129
A25: 17Y | B25: 2018-08-16 | C25: =AddYears(B2,6) -> 2018-11-16 | D25: 0.9594809129 | E25: 6.086111111 | F25: 2.965002875 | G25: ='OIS DF'!I25 -> 0.8943064057 | H25: ='6M DF'!E25 -> 0.9391087927 | I25: 2.651621064 | J25: 2.78446027 | T25: 2018-11-16 | U25: =AddDays(T25,91) -> 2019-02-15 | W25: 6.25 | X25: 0.9818296625
A26: 18Y | B26: 2018-11-16 | C26: 2019-02-15 | D26: =D25+(C26-C25)*(D25-D21)/(C25-C21) -> 1.011846209 | E26: 6.338888889 | F26: 2.796344666 | G26: ='OIS DF'!I26 -> 0.8880995024 | H26: ='6M DF'!E26 -> 0.9349841921 | I26: 2.483432306 | J26: 2.614538058 | T26: 2019-02-15 | U26: 2019-05-17 | W26: 6.5 | X26: 1.029652675
A27: 19Y | B27: 2019-02-15 | C27: 2019-05-17 | D27: =D25+(C27-C25)*(D25-D21)/(C25-C21) -> 1.064211505 | E27: 6.591666667 | F27: 2.931859534 | G27: ='OIS DF'!I27 -> 0.8820906918 | H27: ='6M DF'!E27 -> 0.9297503915 | I27: 2.586166004 | J27: 2.725897549 | T27: 2019-05-17 | U27: 2019-08-16 | W27: 6.75 | X27: 1.077340537
A28: 20Y | B28: 2019-05-17 | C28: 2019-08-16 | D28: =D25+(C28-C25)*(D25-D21)/(C25-C21) -> 1.116576802 | E28: 6.844444444 | F28: 3.067679396 | G28: ='OIS DF'!I28 -> 0.2641736577 | H28: ='6M DF'!E28 -> 0.9243494531 | I28: 0.8104000866 | J28: 2.835607772 | T28: 2019-08-16 | U28: =AddYears(T1,7) -> 2019-11-18 | V28: 1.159852076 | W28: 7 | X28: 1.159852076
A29: 21Y | B29: 2019-08-16 | C29: =AddYears(B2,7) -> 2019-11-18 | D29: 1.159852076 | E29: 7.105555556 | F29: 2.671416057 | G29: ='OIS DF'!I29 -> 0.8700730705 | H29: ='6M DF'!E29 -> 0.9172418059 | I29: 2.324327171 | J29: 2.450334488 | T29: 2019-11-18 | U29: =AddDays(T29,91) -> 2020-02-17 | W29: 7.25 | X29: 1.171901462
A30: 22Y | B30: 2019-11-18 | C30: 2020-02-17 | D30: =D29+(C30-C29)*(D29-D25)/(C29-C25) -> 1.209535389 | E30: 7.358333333 | F30: 3.187367159 | G30: ='OIS DF'!I30 -> 0.8647160492 | H30: ='6M DF'!E30 -> 0.9130904112 | I30: 2.756167537 | J30: 2.910354389 | T30: 2020-02-17 | U30: 2020-05-18 | W30: 7.5 | X30: 1.218582975
A31: 23Y | B31: 2020-02-17 | C31: 2020-05-18 | D31: =D29+(C31-C29)*(D29-D25)/(C29-C25) -> 1.259218702 | E31: 7.611111111 | F31: 3.316001482 | G31: ='OIS DF'!I31 -> 0.859475485 | H31: ='6M DF'!E31 -> 0.9072555607 | I31: 2.850021982 | J31: 3.008460784 | T31: 2020-05-18 | U31: 2020-08-17 | W31: 7.75 | X31: 1.264746237
A32: 24Y | B32: 2020-05-18 | C32: 2020-08-17 | D32: =D29+(C32-C29)*(D29-D25)/(C29-C25) -> 1.308902015 | E32: 7.863888889 | F32: 3.444884768 | G32: ='OIS DF'!I32 -> 0.8542349208 | H32: ='6M DF'!E32 -> 0.9012999031 | I32: 2.942740867 | J32: 3.104874308 | T32: 2020-08-17 | U32: =AddYears(T1,8) -> 2020-11-16 | V32: 1.337277826 | W32: 8 | X32: 1.337277826
A33: 25Y | B33: 2020-08-17 | C33: =AddYears(B2,8) -> 2020-11-16 | D33: 1.337277826 | E33: 8.116666667 | F33: 2.417772952 | G33: ='OIS DF'!I33 -> 0.8491108135 | H33: ='6M DF'!E33 -> 0.8937125674 | I33: 2.052957158 | J33: 2.160794072 | T33: 2020-11-16 | U33: =AddDays(T33,91) -> 2021-02-15 | W33: 8.25 | X33: 1.355192663
A34: 26Y | B34: 2020-11-16 | C34: 2021-02-15 | D34: =D33+(C34-C33)*(D33-D29)/(C33-C29) -> 1.381634263 | E34: 8.369444444 | F34: 3.355556763 | G34: ='OIS DF'!I34 -> 0.8084850364 | H34: ='6M DF'!E34 -> 0.8890757721 | I34: 2.712917432 | J34: 2.98334422 | T34: 2021-02-15 | U34: 2021-05-17 | W34: 8.5 | X34: 1.399326275
A35: 27Y | B35: 2021-02-15 | C35: 2021-05-17 | D35: =D33+(C35-C33)*(D33-D29)/(C33-C29) -> 1.425990701 | E35: 8.622222222 | F35: 3.469241773 | G35: ='OIS DF'!I35 -> 0.7687424284 | H35: ='6M DF'!E35 -> 0.8828323881 | I35: 2.666953345 | J35: 3.062758999 | T35: 2021-05-17 | U35: 2021-08-16 | W35: 8.75 | X35: 1.442642537
A36: 28Y | B36: 2021-05-17 | C36: 2021-08-16 | D36: =D33+(C36-C33)*(D33-D29)/(C33-C29) -> 1.470347138 | E36: 8.875 | F36: 3.583146293 | G36: ='OIS DF'!I36 -> 0.7281166513 | H36: ='6M DF'!E36 -> 0.8765182225 | I36: 2.60894848 | J36: 3.14069302 | T36: 2021-08-16 | U36: =AddYears(T1,9) -> 2021-11-16 | V36: 1.494542403 | W36: 9 | X36: 1.494542403
A37: 29Y | B37: 2021-08-16 | C37: =AddYears(B2,9) -> 2021-11-16 | D37: 1.494542403 | E37: 9.130555556 | F37: 2.49938979 | G37: ='OIS DF'!I37 -> 0.6879324588 | H37: ='6M DF'!E37 -> 0.8694480555 | I37: 1.719411363 | J37: 2.173089592 | T37: 2021-11-16 | U37: =AddDays(T37,91) -> 2022-02-15 | W37: 9.25 | X37: 1.526581662
A38: 30Y | B38: 2021-11-16 | C38: 2022-02-15 | D38: =D37+(C38-C37)*(D37-D33)/(C37-C33) -> 1.533750831 | E38: 9.383333333 | F38: 3.450523632 | G38: ='OIS DF'!I38 -> 0.6955337943 | H38: ='6M DF'!E38 -> 0.8637273708 | I38: 2.399955794 | J38: 2.980311705 | T38: 2022-02-15 | U38: 2022-05-17 | W38: 9.5 | X38: 1.567096975
B39: 2022-02-15 | C39: 2022-05-17 | D39: =D37+(C39-C37)*(D37-D33)/(C37-C33) -> 1.57295926 | E39: 9.636111111 | F39: 3.549799478 | G39: ='OIS DF'!I39 -> 1.82557146 | H39: ='6M DF'!E39 -> 0.8572751672 | I39: 6.480412615 | J39: 3.043154941 | T39: 2022-05-17 | U39: 2022-08-16 | W39: 9.75 | X39: 1.606579837
B40: 2022-05-17 | C40: 2022-08-16 | D40: =D37+(C40-C37)*(D37-D33)/(C37-C33) -> 1.612167689 | E40: 9.888888889 | F40: 3.649266654 | G40: ='OIS DF'!I40 -> 0.7104885956 | H40: ='6M DF'!E40 -> 0.8508010232 | I40: 2.59276234 | J40: 3.104799803 | T40: 2022-08-16 | U40: =AddYears(T1,10) -> 2022-11-16 | V40: 1.634793467 | W40: 10 | X40: 1.634793467
B41: 2022-08-16 | C41: =AddYears(B2,10) -> 2022-11-16 | D41: 1.634793467 | E41: 10.14444444 | F41: 2.678596069 | G41: ='OIS DF'!I41 -> 0.718089931 | H41: ='6M DF'!E41 -> 0.8446106584 | I41: 1.923472866 | J41: 2.262370789 | T41: 2022-11-16 | U41: =AddDays(T41,91) -> 2023-02-15 | W41: 10.25 | X41: 1.682290862
B42: 2022-11-16 | C42: 2023-02-15 | D42: =D41+(C42-C41)*(D41-D37)/(C41-C37) -> 1.669760171 | E42: 10.39722222 | F42: 3.531626971 | G42: ='OIS DF'!I42 -> 0.7358586429 | H42: ='6M DF'!E42 -> 0.8378326953 | I42: 2.59877823 | J42: 2.958912544 | T42: 2023-02-15 | U42: 2023-05-17 | W42: 10.5 | X42: 1.718453475
B43: 2023-02-15 | C43: 2023-05-17 | D43: =D41+(C43-C41)*(D41-D37)/(C41-C37) -> 1.704726874 | E43: 10.65 | F43: 3.619196677 | G43: ='OIS DF'!I43 -> 0.7530479402 | H43: ='6M DF'!E43 -> 0.8313604085 | I43: 2.725428603 | J43: 3.008856828 | T43: 2023-05-17 | U43: 2023-08-16 | W43: 10.75 | X43: 1.753452537
B44: 2023-05-17 | C44: 2023-08-16 | D44: =D41+(C44-C41)*(D41-D37)/(C41-C37) -> 1.739693578 | E44: 10.90277778 | F44: 3.706930643 | G44: ='OIS DF'!I44 -> 0.7708166521 | H44: ='6M DF'!E44 -> 0.8249098823 | I44: 2.857363868 | J44: 3.057883721 | T44: 2023-08-16 | U44: =AddYears(T1,11) -> 2023-11-16 | V44: 1.775044531 | W44: 11 | X44: 1.775044531
B45: 2023-08-16 | C45: =AddYears(B2,11) -> 2023-11-16 | D45: 1.775044531 | E45: 11.15833333 | F45: 3.795305567 | G45: ='OIS DF'!I45 -> 0.7876196731 | H45: ='6M DF'!E45 -> 0.8199819991 | I45: 2.98925733 | J45: 3.112082246 | T45: 2023-11-16 | U45: =AddDays(T45,91) -> 2024-02-15 | W45: 11.25 | X45: 1.819886662
B46: 2023-11-16 | C46: 2024-02-15 | D46: =D45+(C46-C45)*(D45-D41)/(C45-C41) -> 1.810011235 | E46: 11.41111111 | F46: 3.883838701 | G46: ='OIS DF'!I46 -> 0.7435097692 | H46: ='6M DF'!E46 -> 0.8121125714 | I46: 2.887672016 | J46: 3.154114235 | T46: 2024-02-15 | U46: 2024-05-16 | W46: 11.5 | X46: 1.851298175
B47: 2024-02-15 | C47: 2024-05-16 | D47: =D45+(C47-C45)*(D45-D41)/(C45-C41) -> 1.844977939 | E47: 11.66388889 | F47: 3.972036051 | G47: ='OIS DF'!I47 -> 0.7003587764 | H47: ='6M DF'!E47 -> 0.8057836086 | I47: 2.781850309 | J47: 3.200601543 | L47: 5.6e-05 | M47: 4 | T47: 2024-05-16 | U47: 2024-08-15 | W47: 11.75 | X47: 1.881499037
B48: 2024-05-16 | C48: 2024-08-15 | D48: =D45+(C48-C45)*(D45-D41)/(C45-C41) -> 1.879944642 | E48: 11.91666667 | F48: 4.060377652 | G48: ='OIS DF'!I48 -> 0.6562488725 | H48: ='6M DF'!E48 -> 0.7995119846 | I48: 2.664618256 | J48: 3.246320595 | L48: -0.0025896 | M48: 3 | T48: 2024-08-15 | U48: =AddYears(T1,12) -> 2024-11-18 | V48: 1.880934727 | W48: 12 | X48: 1.880934727
B49: 2024-08-15 | C49: =AddYears(B2,12) -> 2024-11-18 | D49: 1.880934727 | E49: 12.18055556 | F49: 1.92600143 | G49: ='OIS DF'!I49 -> 0.6111800577 | H49: ='6M DF'!E49 -> 0.7941253272 | I49: 1.177133665 | J49: 1.529486516 | L49: 0.0352165 | M49: 2 | T49: 2024-11-18 | U49: =AddDays(T49,91) -> 2025-02-17 | W49: 12.25 | X49: 1.938279462
B50: 2024-11-18 | C50: 2025-02-17 | D50: =D49+(C50-C49)*(D49-D45)/(C49-C45) -> 1.907119531 | E50: 12.43333333 | F50: 3.495847142 | G50: ='OIS DF'!I50 -> 0.6161582171 | H50: ='6M DF'!E50 -> 0.7871695271 | I50: 2.153994942 | J50: 2.751824342 | L50: -6.1e-06 | M50: 1 | T50: 2025-02-17 | U50: 2025-05-19 | W50: 12.5 | X50: 1.964877475
B51: 2025-02-17 | C51: 2025-05-19 | D51: =D49+(C51-C49)*(D49-D45)/(C49-C45) -> 1.933304335 | E51: 12.68611111 | F51: 3.559341713 | G51: ='OIS DF'!I51 -> 0.6210281557 | H51: ='6M DF'!E51 -> 0.7811113842 | I51: 2.210451419 | J51: 2.780242332 | L51: 0.1530006 | T51: 2025-05-19 | U51: 2025-08-18 | W51: 12.75 | X51: 1.990301737
B52: 2025-05-19 | C52: 2025-08-18 | D52: =D49+(C52-C49)*(D49-D45)/(C49-C45) -> 1.959489139 | E52: 12.93888889 | F52: 3.622948987 | G52: ='OIS DF'!I52 -> 0.6260063151 | H52: ='6M DF'!E52 -> 0.7751359163 | I52: 2.267988945 | J52: 2.808277883 | T52: 2025-08-18 | U52: =AddYears(T1,13) -> 2025-11-17 | V52: 2.003165858 | W52: 13 | X52: 2.003165858
B53: 2025-08-18 | C53: =AddYears(B2,13) -> 2025-11-17 | D53: 2.003165858 | E53: 13.19166667 | F53: 5.357097448 | G53: ='OIS DF'!I53 -> 0.6308762536 | H53: ='6M DF'!E53 -> 0.7711607146 | I53: 3.379665568 | J53: 4.131183096 | T53: 2025-11-17 | U53: =AddDays(T53,91) -> 2026-02-16 | W53: 13.25 | X53: 2.037723663
B54: 2025-11-17 | C54: 2026-02-16 | D54: =D53+(C54-C53)*(D53-D49)/(C53-C49) -> 2.033723641 | E54: 13.44444444 | F54: 4.145477327 | G54: ='OIS DF'!I54 -> 0.6542087218 | H54: ='6M DF'!E54 -> 0.7634504577 | I54: 2.712007423 | J54: 3.164866562 | T54: 2026-02-16 | U54: 2026-05-18 | W54: 13.5 | X54: 2.059781775
B55: 2026-02-16 | C55: 2026-05-18 | D55: =D53+(C55-C53)*(D53-D49)/(C53-C49) -> 2.064281424 | E55: 13.69722222 | F55: 4.221933051 | G55: ='OIS DF'!I55 -> 0.6770339624 | H55: ='6M DF'!E55 -> 0.7577472968 | I55: 2.858392063 | J55: 3.199158357 | T55: 2026-05-18 | U55: 2026-08-17 | W55: 13.75 | X55: 2.080787037
B56: 2026-05-18 | C56: 2026-08-17 | D56: =D53+(C56-C53)*(D53-D49)/(C53-C49) -> 2.094839206 | E56: 13.95 | F56: 4.298500703 | G56: ='OIS DF'!I56 -> 0.7003664305 | H56: ='6M DF'!E56 -> 0.7521404379 | I56: 3.010525594 | J56: 3.233076201 | T56: 2026-08-17 | U56: =AddYears(T1,14) -> 2026-11-16 | V56: 2.125396989 | W56: 14 | X56: 2.125396989
B57: 2026-08-17 | C57: =AddYears(B2,14) -> 2026-11-16 | D57: 2.125396989 | E57: 14.20277778 | F57: 4.37517748 | G57: ='OIS DF'!I57 -> 0.722177216 | H57: ='6M DF'!E57 -> 0.7475616931 | I57: 3.159653492 | J57: 3.270715085 | T57: 2026-11-16 | U57: =AddDays(T57,91) -> 2027-02-15 | W57: 14.25 | X57: 2.119817663
B58: 2026-11-16 | C58: 2027-02-15 | D58: =D57+(C58-C57)*(D57-D53)/(C57-C53) -> 2.155954772 | E58: 14.45555556 | F58: 4.451960676 | G58: ='OIS DF'!I58 -> 0.6799368648 | H58: ='6M DF'!E58 -> 0.7412206021 | I58: 3.027052184 | J58: 3.299884973 | T58: 2027-02-15 | U58: 2027-05-17 | W58: 14.5 | X58: 2.137945475
B59: 2027-02-15 | C59: 2027-05-17 | D59: =D57+(C59-C57)*(D57-D53)/(C57-C53) -> 2.186512554 | E59: 14.70833333 | F59: 4.528847671 | G59: ='OIS DF'!I59 -> 0.638614782 | H59: ='6M DF'!E59 -> 0.7359080662 | I59: 2.892189068 | J59: 3.332815531 | T59: 2027-05-17 | U59: 2027-08-16 | W59: 14.75 | X59: 2.155225337
B60: 2027-05-17 | C60: 2027-08-16 | D60: =D57+(C60-C57)*(D57-D53)/(C57-C53) -> 2.217070337 | E60: 14.96111111 | F60: 4.605835928 | G60: ='OIS DF'!I60 -> 0.5963744308 | H60: ='6M DF'!E60 -> 0.7306926876 | I60: 2.74680278 | J60: 3.365450633 | T60: 2027-08-16 | U60: =AddYears(T1,15) -> 2027-11-16 | V60: 2.130975365 | W60: 15 | X60: 2.130975365
B61: 2027-08-16 | C61: =AddYears(B2,15) -> 2027-11-16 | D61: 2.130975365 | E61: 15.21666667 | F61: -0.3602880709 | G61: ='OIS DF'!I61 -> 0.5545932138 | H61: ='6M DF'!E61 -> 0.723408079 | I61: -0.1998133191 | J61: -0.2606353012 | T61: 2027-11-16 | U61: =AddDays(T61,91) -> 2028-02-15 | W61: 15.25 | X61: 2.187503862
B62: 2027-11-16 | C62: 2028-02-15 | D62: =D61+(C62-C61)*(D61-D57)/(C61-C57) -> 2.132366138 | E62: 15.46944444 | F62: 2.217235605 | G62: ='OIS DF'!I62 -> 0.5636418406 | H62: ='6M DF'!E62 -> 0.7205449916 | I62: 1.249726757 | J62: 1.59761801 | T62: 2028-02-15 | U62: 2028-05-16 | W62: 15.5 | X62: 2.202646975
B63: 2028-02-15 | C63: 2028-05-16 | D63: =D61+(C63-C61)*(D61-D57)/(C61-C57) -> 2.133756911 | E63: 15.72222222 | F63: 2.220054937 | G63: ='OIS DF'!I63 -> 0.5724937581 | H63: ='6M DF'!E63 -> 0.7156062906 | I63: 1.270967594 | J63: 1.588685278 | T63: 2028-05-16 | U63: 2028-08-15 | W63: 15.75 | X63: 2.217231037
B64: 2028-05-16 | C64: 2028-08-15 | D64: =D61+(C64-C61)*(D61-D57)/(C61-C57) -> 2.135147684 | E64: 15.975 | F64: 2.222874868 | G64: ='OIS DF'!I64 -> 0.5815423848 | H64: ='6M DF'!E64 -> 0.7107519545 | I64: 1.292695952 | J64: 1.579912657 | T64: 2028-08-15 | U64: =AddYears(T1,16) -> 2028-11-16 | V64: 2.21470352 | W64: 16 | X64: 2.21470352
B65: 2028-08-15 | C65: =AddYears(B2,16) -> 2028-11-16 | D65: 2.21470352 | E65: 16.23333333 | F65: 14.14003195 | G65: ='OIS DF'!I65 -> 0.5905910116 | H65: ='6M DF'!E65 -> 0.7052099035 | I65: 8.350975773 | J65: 9.971690566 | T65: 2028-11-16 | U65: =AddDays(T65,91) -> 2029-02-15 | W65: 16.25 | X65: 2.245068662
B66: 2028-11-16 | C66: 2029-02-15 | D66: =D65+(C66-C65)*(D65-D61)/(C65-C61) -> 2.235521176 | E66: 16.48611111 | F66: 3.897482491 | G66: ='OIS DF'!I66 -> 0.6125741132 | H66: ='6M DF'!E66 -> 0.7012737541 | I66: 2.38749688 | J66: 2.733202178 | T66: 2029-02-15 | U66: 2029-05-17 | W66: 16.5 | X66: 2.258508675
B67: 2029-02-15 | C67: =AddDays(B67,91) -> 2029-05-17 | D67: =D65+(C67-C65)*(D65-D61)/(C65-C61) -> 2.256338832 | E67: =((C67-$B$2)/30)/12 -> 16.73888889 | F67: 3.947535968 | G67: ='OIS DF'!I67 -> 0.6338403745 | H67: ='6M DF'!E67 -> 0.6966362762 | I67: =G67*F67 -> 2.502107676 | J67: =H67*F67 -> 2.749996756 | T67: =U66 -> 2029-05-17 | U67: 2029-08-16 | W67: =W66+0.25 -> 16.75 | X67: 2.271762537
B68: =C67 -> 2029-05-17 | C68: 2029-08-16 | D68: =D65+(C68-C65)*(D65-D61)/(C65-C61) -> 2.277156488 | E68: 16.99166667 | F68: =((1+D68)^E68/(1+D67)^E67)^(1/(E68-E67))-1 -> 3.997657553 | G68: ='OIS DF'!I68 -> 0.6558234761 | H68: ='6M DF'!E68 -> 0.692055913 | I68: 2.621757672 | J68: 2.766602548 | T68: 2029-08-16 | U68: =AddYears(T1,17) -> 2029-11-16 | V68: 2.298202909 | W68: 17 | X68: 2.298202909
B69: 2029-08-16 | C69: =AddYears(B2,17) -> 2029-11-16 | D69: 2.298202909 | E69: 17.24722222 | F69: 4.048121745 | G69: ='OIS DF'!I69 -> 0.6766118439 | H69: ='6M DF'!E69 -> 0.6870064802 | I69: 2.739007118 | J69: 2.781085872 | T69: 2029-11-16 | U69: =AddDays(T69,91) -> 2030-02-15 | W69: 17.25 | X69: 2.298142462
B70: 2029-11-16 | C70: 2030-02-15 | D70: =D69+(C70-C69)*(D69-D65)/(C69-C65) -> 2.319020565 | E70: 17.5 | F70: 4.098653493 | G70: ='OIS DF'!I70 -> 0.6348685632 | H70: ='6M DF'!E70 -> 0.6830289371 | I70: 2.602106254 | J70: 2.799498939 | T70: 2030-02-15 | U70: 2030-05-17 | W70: 17.5 | X70: =W70^4*$L$47+W70^3*$L$48+W70^2*$L$49+W70*$L$50+$L$51 -> 2.311496975
B71: 2030-02-15 | C71: 2030-05-17 | D71: =D69+(C71-C69)*(D69-D65)/(C69-C65) -> 2.339838221 | E71: 17.75277778 | F71: 4.148973913 | G71: ='OIS DF'!I71 -> 0.594457515 | H71: ='6M DF'!E71 -> 0.6785611252 | I71: 2.466388722 | J71: 2.815332407 | T71: 2030-05-17 | U71: 2030-08-16 | W71: 17.75 | X71: 2.325122237
B72: 2030-05-17 | C72: 2030-08-16 | D72: =D69+(C72-C69)*(D69-D65)/(C69-C65) -> 2.360655877 | E72: 18.00555556 | F72: 4.199358367 | G72: ='OIS DF'!I72 -> 0.5536023892 | H72: ='6M DF'!E72 -> 0.674108018 | I72: 2.324774825 | J72: 2.830821146 | T72: 2030-08-16 | U72: =AddYears(T1,18) -> 2030-11-18 | V72: 2.38215983 | W72: 18 | X72: 2.38215983
B73: 2030-08-16 | C73: =AddYears(B2,18) -> 2030-11-18 | D73: 2.38215983 | E73: 18.26666667 | F73: 4.250636783 | G73: ='OIS DF'!I73 -> 0.5136354184 | H73: ='6M DF'!E73 -> 0.6689141156 | I73: 2.183277602 | J73: 2.843310944 | T73: 2030-11-18 | U73: =AddDays(T73,91) -> 2031-02-17 | W73: 18.25 | X73: 2.353699662
B74: 2030-11-18 | C74: 2031-02-17 | D74: =D73+(C74-C73)*(D73-D69)/(C73-C69) -> 2.402977486 | E74: 18.51944444 | F74: 4.301981732 | G74: ='OIS DF'!I74 -> 0.5494384166 | H74: ='6M DF'!E74 -> 0.6651928511 | I74: 2.363674031 | J74: 2.861647494 | T74: 2031-02-17 | U74: 2031-05-19 | W74: 18.5 | X74: 2.368922275
B75: 2031-02-17 | C75: 2031-05-19 | D75: =D73+(C75-C73)*(D73-D69)/(C73-C69) -> 2.423795142 | E75: 18.77222222 | F75: 4.352554571 | G75: ='OIS DF'!I75 -> 0.5844630887 | H75: ='6M DF'!E75 -> 0.6607018376 | I75: 2.543907488 | J75: 2.875740803 | T75: 2031-05-19 | U75: 2031-08-18 | W75: 18.75 | X75: 2.384956537
B76: 2031-05-19 | C76: 2031-08-18 | D76: =D73+(C76-C73)*(D73-D69)/(C73-C69) -> 2.444612798 | E76: 19.025 | F76: 4.403187663 | G76: ='OIS DF'!I76 -> 0.6202660869 | H76: ='6M DF'!E76 -> 0.656167638 | I76: 2.731147982 | J76: 2.889229249 | T76: 2031-08-18 | U76: =AddYears(T1,19) -> 2031-11-17 | V76: 2.465430454 | W76: 19 | X76: 2.465430454
B77: 2031-08-18 | C77: =AddYears(B2,19) -> 2031-11-17 | D77: 2.465430454 | E77: 19.27777778 | F77: 4.453880118 | G77: ='OIS DF'!I77 -> 0.6537341069 | H77: ='6M DF'!E77 -> 0.6507919753 | I77: 2.911653341 | J77: 2.89854944 | T77: 2031-11-17 | U77: =AddDays(T77,91) -> 2032-02-16 | W77: 19.25 | X77: 2.420058662
B78: 2031-11-17 | C78: 2032-02-16 | D78: =D77+(C78-C77)*(D77-D73)/(C77-C73) -> 2.48624811 | E78: 19.53055556 | F78: 4.504631061 | G78: ='OIS DF'!I78 -> 0.6509195673 | H78: ='6M DF'!E78 -> 0.6469013679 | I78: 2.932152501 | J78: 2.914051996 | T78: 2032-02-16 | U78: 2032-05-17 | W78: 19.5 | X78: 2.439438975
B79: 2032-02-16 | C79: 2032-05-17 | D79: =D77+(C79-C77)*(D77-D73)/(C77-C73) -> 2.507065766 | E79: 19.78333333 | F79: 4.555439635 | G79: ='OIS DF'!I79 -> 0.6495696276 | H79: ='6M DF'!E79 -> 0.6421328911 | I79: 2.959075227 | J79: 2.925197623 | T79: 2032-05-17 | U79: 2032-08-16 | W79: 19.75 | X79: 2.460255837
B80: 2032-05-17 | C80: 2032-08-16 | D80: =D77+(C80-C77)*(D77-D73)/(C77-C73) -> 2.527883422 | E80: 20.03611111 | F80: 4.606304999 | G80: ='OIS DF'!I80 -> 0.6453516737 | H80: ='6M DF'!E80 -> 0.6372484893 | I80: 2.972686641 | J80: 2.935360902 | T80: 2032-08-16 | U80: =AddYears(T1,20) -> 2032-11-16 | V80: 2.427779549 | W80: 20 | X80: 2.427779549
B81: 2032-08-16 | C81: =AddYears(B2,20) -> 2032-11-16 | D81: 2.427779549 | E81: 20.29166667 | F81: -0.6411768296 | G81: ='OIS DF'!I81 -> 0.6425677269 | H81: ='6M DF'!E81 -> 0.6327854264 | I81: -0.411999538 | J81: -0.4057273535
G82: =SUM(G2:G81) -> 61.72506712 | H82: =SUM(H2:H81) -> 66.84858556
